Workbook

Sheet Calculations
A1: Northwoods Software
A3: Maximum Reactions
B4: Last Revised: October 19, 2023
A6: Applicable Codes:
B7: CSA S16
A9: Project Information:
B10: Date: | C10: =TODAY() -> 2023-10-19
B11: Project Number:
B12: Project Name: | C12: Beam
B13: Description:
B14: Designer: | C14: Dik
B15: Checked: | C15: Dik
A18: Material
B19: Steel
B20: Fy = | C20: 350 | D20: Mpa | G20: Yield Strength of Steel
B21: Es = | C21: 200000 | D21: Mpa | G21: Modulus of Elasticity | K21: Added Oct 19, 2023
B22: fS = | C22: 0.9 | G22: Material Property Factor
B23: fbe = | C23: 0.75 | K23: Added Oct 19, 2023
B24: Dc = | C24: 1.5 | D24: in | E24: =Dc*25.4 -> 38.1 | F24: mm | G24: Depth of Cope (Top or Bottom)
B26: Beam B01
B27: Span: | C27: 20 | D27: ft | E27: =C27*0.3048 -> 6.096 | F27: m | K27: Revised Mar 23, 2023
B28: N = | C28: 7 | D28: in | E28: =C28*25.4 -> 177.8 | F28: mm | G28: Length of Bearing for Web Crippling
B29: Coped Flanges = | C29: 2 | G29: Number of Coped Flanges
B30: Web Stiff Thick = | C30: 0.5 | D30: in | E30: =C30*25.4 -> 12.7 | F30: mm | G30: Thickness of Web Stiff at End
B32: Section: | C32: W18X71 | E32: =VLOOKUP(C32,W_Tbl,2) -> W460X106 | K32: AISC_16_ Oct 19, 2023
B33: Class: | C33: =IF(AND(C43<=D43,C44<=D44),"1",IF(AND(C43<=E43,C44<=E44),"2",IF(AND(C43<=F43,C44<=F44),"3","4"))) -> 1 | G33: Class of Section
B34: d = | C34: =VLOOKUP(C32,W_Tbl,5) -> 18.5 | D34: in | E34: =C34*25.4 -> 469.9 | F34: mm | G34: Depth | K34: Corrected Oct 3, 2021
B35: b = | C35: =VLOOKUP(C32,W_Tbl,6) -> 7.64 | D35: in | E35: =C35*25.4 -> 194.056 | F35: mm | G35: Flange Width
B36: t = | C36: =VLOOKUP(C32,W_Tbl,8) -> 0.81 | D36: in | E36: =C36*25.4 -> 20.574 | F36: mm | G36: Flange Thickness
B37: w = | C37: =VLOOKUP(C32,W_Tbl,7) -> 0.495 | D37: in | E37: =C37*25.4 -> 12.573 | F37: mm | G37: Web Thickness
B38: SX = | C38: =VLOOKUP(C32,W_Tbl,13) -> 127 | D38: in3 | E38: =C38*25.4^3/1000 -> 2081.157128 | F38: 103x mm3 | G38: Section Modulus
B39: ZX = | C39: =VLOOKUP(C32,W_Tbl,12) -> 146 | D39: in3 | E39: =C39*25.4^3/1000 -> 2392.511344 | F39: 103x mm3 | G39: Plastic Section Modulus
B40: IX = | C40: =VLOOKUP(C32,W_Tbl,11) -> 1170 | D40: in4 | E40: =C40*25.4^4/1000000 -> 486.990768 | F40: 106x mm4 | G40: Moment of Inertia
C42: 0 | D42: Class 1 | E42: Class 2 | F42: Class 3
B43: Web h/w = | C43: =(C34-2*C36)/C37 -> 34.1010101 | D43: =1100/SQRT(Fy)*(1-0.39*C42) -> 58.79747322 | E43: =1700/SQRT(Fy)*(1-0.61*C42) -> 90.86882225 | F43: =1900/SQRT(Fy)*(1-0.65*C42) -> 101.5592719
B44: Flange b/t = | C44: =E35/(2*E36) -> 4.716049383 | D44: =145/SQRT(Fy) -> 7.750576015 | E44: =170/SQRT(Fy) -> 9.086882225 | F44: =200/SQRT(Fy) -> 10.69044968
B45: Flexure:
B46: Mr = | C46: =E46*0.7375621492773 -> 555.8571299 | D46: K-ft | E46: =IF(OR(C33="1",C33="2"),Fy*FS*E39/1000,Fy*FS*E38/1000) -> 753.6410734 | F46: KN_m | G46: Moment Resistance of Section
B47: Qmax = | C47: =8*C46/C27^2 -> 11.1171426 | D47: Klf | E47: =C47*14.5939029372064 -> 162.2425 | F47: kNpm
B48: %UDL = | C48: 67 | D48: % | G48: % of UDL for Design Reaction | K48: Added Oct 10, 2023
B49: Rmax = | C49: =C47*C27*C48/100 -> 148.9697108 | D49: K | E49: =C49*4.4482216152605 -> 662.6502876 | F49: kN | G49: Design Reaction based on UDL
B50: Shear: | K50: Added Jan 15, 2020
B51: Percent of Web Shear = | C51: 50 | K51: Added Mar 16, 2023
B52: New Depth of Web = | C52: =C34-C29*(Dc) -> 15.5 | D52: in | E52: =C52*25.4 -> 393.7 | F52: mm
D53: Vs1 | E53: Vs2 | F53: Vs3 | G53: Based on h/w ratios
B54: New Web d/w = | C54: =C52/C37 -> 31.31313131 | D54: =IF(C54<=1014/SQRT(Fy),0.66*Fy,0) -> 231 | E54: =IF(AND(C54>1014/SQRT(Fy),C54<= 1435/SQRT(Fy)),670*SQRT(Fy)/C54,0) -> 0 | F54: =IF(C54> 1435/SQRT(Fy),961200/C54^2,0) -> 0
B55: Fs = | C55: =E55*0.145037737730209 -> 33.50371742 | D55: Ksi | E55: =MAX(D54:F54) -> 231 | F55: Mpa | G55: Max of Vs1, Vs2, and Vs3
B56: Vr = | C56: =FS*C55*C52*C37 -> 231.3515447 | D56: K | E56: =C56*4.4482216152605 -> 1029.102942 | F56: kN | G56: Design Reaction based on Shear
B57: Check for End Stiffener: | K57: Added Oct 16, 2023
B58: d/t Ratio: | C58: =C34/C37 -> 37.37373737 | E58: =IF(C58<=1220*SQRT(Fy), " End Stiffener Not Required", " N381Provide End Stiffener") -> End Stiffener Not Required
B60: Check for End Web Crippling: | K60: Added Oct 19, 2023
B61: PrW1 = | C61: =E61/4.4482216 -> 192.981413 | D61: K | E61: =Fbe*(E28+4*E36)*E37*Fy/1000 -> 858.4240896 | F61: kN
B62: PrW2 = | C62: =E62/4.448 -> 323.3637541 | D62: K | E62: =Fbe*1.45*E37^2*SQRT(Fy*Ess)/1000 -> 1438.321978 | F62: kN
B63: PrW = | C63: =MIN(C61:C62) -> 192.981413 | D63: K | E63: =MIN(E61:E62) -> 858.4240896 | F63: kN | G63: Web Crippling Load
B65: Properties of End Stiffener:
B66: A = | C66: =C35*C30+C37*(200/SQRT(Fy)*C37-C30) -> 6.191927432 | D66: in2
B67: I = | C67: =1/12*(C35*C30^3+C37*(200/SQRT(Fy)*C37-C30)^3+(3*C35*C37*C30*(200/SQRT(Fy)*C37)^2*(200/SQRT(Fy)*C37-C30))/(C35*C30+C37*(200/SQRT(Fy)*C37-C30))) -> 14.86236119 | D67: in4
B68: r = | C68: =SQRT(C67/C66) -> 1.54928379 | D68: in

Sheet W
B1: 1 | C1: =1+B1 -> 2 | D1: =1+C1 -> 3 | E1: =1+D1 -> 4 | F1: =1+E1 -> 5 | G1: =1+F1 -> 6 | H1: =1+G1 -> 7 | I1: =1+H1 -> 8 | J1: =1+I1 -> 9 | K1: =1+J1 -> 10 | L1: 11 | M1: =1+L1 -> 12 | N1: =1+M1 -> 13 | O1: =1+N1 -> 14 | P1: =1+O1 -> 15 | Q1: =1+P1 -> 16 | R1: =1+Q1 -> 17 | S1: =1+R1 -> 18 | T1: =1+S1 -> 19 | U1: =1+T1 -> 20
A2: I_Desig | B2: I_Desig | C2: M_Desig | D2: W | E2: A | F2: d | G2: bf | H2: tw | I2: tf | J2: kdes | K2: k1 | L2: Ix | M2: Zx | N2: Sx | O2: rx | P2: Iy | Q2: Zy | R2: Sy | S2: ry | T2: J | U2: Cw
D3: lb/ft | E3: in2 | F3: in | G3: in | H3: in | I3: in | J3: in | K3: in | L3: in4 | M3: in3 | N3: in3 | O3: in | P3: in4 | Q3: in3 | R3: in3 | S3: in | T3: in4 | U3: in6
A4: W44X408 | B4: W10X100 | C4: W250X149 | D4: 100 | E4: 29.3 | F4: 11.1 | G4: 10.3 | H4: 0.68 | I4: 1.12 | J4: 1.62 | K4: 1 | L4: 623 | M4: 130 | N4: 112 | O4: 4.6 | P4: 207 | Q4: 61 | R4: 40 | S4: 2.65 | T4: 10.9 | U4: 5150 | V4: 250
A5: W44X368 | B5: W10X112 | C5: W250X167 | D5: 112 | E5: 32.9 | F5: 11.4 | G5: 10.4 | H5: 0.755 | I5: 1.25 | J5: 1.75 | K5: 1 | L5: 716 | M5: 147 | N5: 126 | O5: 4.66 | P5: 236 | Q5: 69.2 | R5: 45.3 | S5: 2.68 | T5: 15.1 | U5: 6020 | V5: 249
A6: W44X335 | B6: W10X12 | C6: W250X17.9 | D6: 12 | E6: 3.54 | F6: 9.87 | G6: 3.96 | H6: 0.19 | I6: 0.21 | J6: 0.51 | K6: 0.5625 | L6: 53.8 | M6: 12.6 | N6: 10.9 | O6: 3.9 | P6: 2.18 | Q6: 1.74 | R6: 1.1 | S6: 0.785 | T6: 0.0547 | U6: 50.9 | V6: 266
A7: W44X290 | B7: W10X15 | C7: W250X22.3 | D7: 15 | E7: 4.41 | F7: 9.99 | G7: 4 | H7: 0.23 | I7: 0.27 | J7: 0.57 | K7: 0.5625 | L7: 68.9 | M7: 16 | N7: 13.8 | O7: 3.95 | P7: 2.89 | Q7: 2.3 | R7: 1.45 | S7: 0.81 | T7: 0.104 | U7: 68.3 | V7: 265
A8: W44X262 | B8: W10X17 | C8: W250X25.3 | D8: 17 | E8: 4.99 | F8: 10.1 | G8: 4.01 | H8: 0.24 | I8: 0.33 | J8: 0.63 | K8: 0.5625 | L8: 81.9 | M8: 18.7 | N8: 16.2 | O8: 4.05 | P8: 3.56 | Q8: 2.8 | R8: 1.78 | S8: 0.845 | T8: 0.156 | U8: 85.1 | V8: 264
A9: W44X230 | B9: W10X19 | C9: W250X28.4 | D9: 19 | E9: 5.62 | F9: 10.2 | G9: 4.02 | H9: 0.25 | I9: 0.395 | J9: 0.695 | K9: 0.625 | L9: 96.3 | M9: 21.6 | N9: 18.8 | O9: 4.14 | P9: 4.29 | Q9: 3.35 | R9: 2.14 | S9: 0.874 | T9: 0.233 | U9: 104 | V9: 263
A10: W40X655 | B10: W10X22 | C10: W250X32.7 | D10: 22 | E10: 6.49 | F10: 10.2 | G10: 5.75 | H10: 0.24 | I10: 0.36 | J10: 0.66 | K10: 0.625 | L10: 118 | M10: 26 | N10: 23.2 | O10: 4.27 | P10: 11.4 | Q10: 6.1 | R10: 3.97 | S10: 1.33 | T10: 0.239 | U10: 275 | V10: 262
A11: W40X593 | B11: W10X26 | C11: W250X38.5 | D11: 26 | E11: 7.61 | F11: 10.3 | G11: 5.77 | H11: 0.26 | I11: 0.44 | J11: 0.74 | K11: 0.6875 | L11: 144 | M11: 31.3 | N11: 27.9 | O11: 4.35 | P11: 14.1 | Q11: 7.5 | R11: 4.89 | S11: 1.36 | T11: 0.402 | U11: 345 | V11: 261
A12: W40X503 | B12: W10X30 | C12: W250X44.8 | D12: 30 | E12: 8.84 | F12: 10.5 | G12: 5.81 | H12: 0.3 | I12: 0.51 | J12: 0.81 | K12: 0.6875 | L12: 170 | M12: 36.6 | N12: 32.4 | O12: 4.38 | P12: 16.7 | Q12: 8.84 | R12: 5.75 | S12: 1.37 | T12: 0.622 | U12: 414 | V12: 260
A13: W40X431 | B13: W10X33 | C13: W250X49.1 | D13: 33 | E13: 9.71 | F13: 9.73 | G13: 7.96 | H13: 0.29 | I13: 0.435 | J13: 0.935 | K13: 0.75 | L13: 171 | M13: 38.8 | N13: 35 | O13: 4.19 | P13: 36.6 | Q13: 14 | R13: 9.2 | S13: 1.94 | T13: 0.583 | U13: 791 | V13: 259
A14: W40X397 | B14: W10X39 | C14: W250X58 | D14: 39 | E14: 11.5 | F14: 9.92 | G14: 7.99 | H14: 0.315 | I14: 0.53 | J14: 1.03 | K14: 0.8125 | L14: 209 | M14: 46.8 | N14: 42.1 | O14: 4.27 | P14: 45 | Q14: 17.2 | R14: 11.3 | S14: 1.98 | T14: 0.976 | U14: 992 | V14: 258
A15: W40X372 | B15: W10X45 | C15: W250X67 | D15: 45 | E15: 13.3 | F15: 10.1 | G15: 8.02 | H15: 0.35 | I15: 0.62 | J15: 1.12 | K15: 0.8125 | L15: 248 | M15: 54.9 | N15: 49.1 | O15: 4.32 | P15: 53.4 | Q15: 20.3 | R15: 13.3 | S15: 2.01 | T15: 1.51 | U15: 1200 | V15: 257
A16: W40X362 | B16: W10X49 | C16: W250X73 | D16: 49 | E16: 14.4 | F16: 10 | G16: 10 | H16: 0.34 | I16: 0.56 | J16: 1.06 | K16: 0.8125 | L16: 272 | M16: 60.4 | N16: 54.6 | O16: 4.35 | P16: 93.4 | Q16: 28.3 | R16: 18.7 | S16: 2.54 | T16: 1.39 | U16: 2070 | V16: 256
A17: W40X324 | B17: W10X54 | C17: W250X80 | D17: 54 | E17: 15.8 | F17: 10.1 | G17: 10 | H17: 0.37 | I17: 0.615 | J17: 1.12 | K17: 0.8125 | L17: 303 | M17: 66.6 | N17: 60 | O17: 4.37 | P17: 103 | Q17: 31.3 | R17: 20.6 | S17: 2.56 | T17: 1.82 | U17: 2320 | V17: 255
A18: W40X297 | B18: W10X60 | C18: W250X89 | D18: 60 | E18: 17.7 | F18: 10.2 | G18: 10.1 | H18: 0.42 | I18: 0.68 | J18: 1.18 | K18: 0.8125 | L18: 341 | M18: 74.6 | N18: 66.7 | O18: 4.39 | P18: 116 | Q18: 35 | R18: 23 | S18: 2.57 | T18: 2.48 | U18: 2640 | V18: 254
A19: W40X277 | B19: W10X68 | C19: W250X101 | D19: 68 | E19: 19.9 | F19: 10.4 | G19: 10.1 | H19: 0.47 | I19: 0.77 | J19: 1.27 | K19: 0.875 | L19: 394 | M19: 85.3 | N19: 75.7 | O19: 4.44 | P19: 134 | Q19: 40.1 | R19: 26.4 | S19: 2.59 | T19: 3.56 | U19: 3100 | V19: 253
A20: W40X249 | B20: W10X77 | C20: W250X115 | D20: 77 | E20: 22.7 | F20: 10.6 | G20: 10.2 | H20: 0.53 | I20: 0.87 | J20: 1.37 | K20: 0.875 | L20: 455 | M20: 97.6 | N20: 85.9 | O20: 4.49 | P20: 154 | Q20: 45.9 | R20: 30.1 | S20: 2.6 | T20: 5.11 | U20: 3630 | V20: 252
A21: W40X215 | B21: W10X88 | C21: W250X131 | D21: 88 | E21: 26 | F21: 10.8 | G21: 10.3 | H21: 0.605 | I21: 0.99 | J21: 1.49 | K21: 0.9375 | L21: 534 | M21: 113 | N21: 98.5 | O21: 4.54 | P21: 179 | Q21: 53.1 | R21: 34.8 | S21: 2.63 | T21: 7.53 | U21: 4330 | V21: 251
A22: W40X199 | B22: W12X106 | C22: W310X158 | D22: 106 | E22: 31.2 | F22: 12.9 | G22: 12.2 | H22: 0.61 | I22: 0.99 | J22: 1.59 | K22: 1.125 | L22: 933 | M22: 164 | N22: 145 | O22: 5.47 | P22: 301 | Q22: 75.1 | R22: 49.3 | S22: 3.11 | T22: 9.13 | U22: 10700 | V22: 231
A23: W40X392 | B23: W12X120 | C23: W310X179 | D23: 120 | E23: 35.2 | F23: 13.1 | G23: 12.3 | H23: 0.71 | I23: 1.11 | J23: 1.7 | K23: 1.1875 | L23: 1070 | M23: 186 | N23: 163 | O23: 5.51 | P23: 345 | Q23: 85.4 | R23: 56 | S23: 3.13 | T23: 12.9 | U23: 12400 | V23: 230
A24: W40X331 | B24: W12X136 | C24: W310X202 | D24: 136 | E24: 39.9 | F24: 13.4 | G24: 12.4 | H24: 0.79 | I24: 1.25 | J24: 1.85 | K24: 1.25 | L24: 1240 | M24: 214 | N24: 186 | O24: 5.58 | P24: 398 | Q24: 98 | R24: 64.2 | S24: 3.16 | T24: 18.5 | U24: 14700 | V24: 229
A25: W40X327 | B25: W12X14 | C25: W310X21 | D25: 14 | E25: 4.16 | F25: 11.9 | G25: 3.97 | H25: 0.2 | I25: 0.225 | J25: 0.525 | K25: 0.5625 | L25: 88.6 | M25: 17.4 | N25: 14.9 | O25: 4.62 | P25: 2.36 | Q25: 1.9 | R25: 1.19 | S25: 0.753 | T25: 0.0704 | U25: 80.4 | V25: 248
A26: W40X294 | B26: W12X152 | C26: W310X226 | D26: 152 | E26: 44.7 | F26: 13.7 | G26: 12.5 | H26: 0.87 | I26: 1.4 | J26: 2 | K26: 1.25 | L26: 1430 | M26: 243 | N26: 209 | O26: 5.66 | P26: 454 | Q26: 111 | R26: 72.8 | S26: 3.19 | T26: 25.8 | U26: 17200 | V26: 228
A27: W40X278 | B27: W12X16 | C27: W310X23.8 | D27: 16 | E27: 4.71 | F27: 12 | G27: 3.99 | H27: 0.22 | I27: 0.265 | J27: 0.565 | K27: 0.5625 | L27: 103 | M27: 20.1 | N27: 17.1 | O27: 4.67 | P27: 2.82 | Q27: 2.26 | R27: 1.41 | S27: 0.773 | T27: 0.103 | U27: 96.9 | V27: 247
A28: W40X264 | B28: W12X170 | C28: W310X253 | D28: 170 | E28: 50 | F28: 14 | G28: 12.6 | H28: 0.96 | I28: 1.56 | J28: 2.16 | K28: 1.3125 | L28: 1650 | M28: 275 | N28: 235 | O28: 5.74 | P28: 517 | Q28: 126 | R28: 82.3 | S28: 3.22 | T28: 35.6 | U28: 20100 | V28: 227
A29: W40X235 | B29: W12X19 | C29: W310X28.3 | D29: 19 | E29: 5.57 | F29: 12.2 | G29: 4.01 | H29: 0.235 | I29: 0.35 | J29: 0.65 | K29: 0.5625 | L29: 130 | M29: 24.7 | N29: 21.3 | O29: 4.82 | P29: 3.76 | Q29: 2.98 | R29: 1.88 | S29: 0.822 | T29: 0.18 | U29: 131 | V29: 246
A30: W40X211 | B30: W12X190 | C30: W310X283 | D30: 190 | E30: 56 | F30: 14.4 | G30: 12.7 | H30: 1.06 | I30: 1.74 | J30: 2.33 | K30: 1.375 | L30: 1890 | M30: 311 | N30: 263 | O30: 5.82 | P30: 589 | Q30: 143 | R30: 93 | S30: 3.25 | T30: 48.8 | U30: 23600 | V30: 226
A31: W40X183 | B31: W12X210 | C31: W310X313 | D31: 210 | E31: 61.8 | F31: 14.7 | G31: 12.8 | H31: 1.18 | I31: 1.9 | J31: 2.5 | K31: 1.4375 | L31: 2140 | M31: 348 | N31: 292 | O31: 5.89 | P31: 664 | Q31: 159 | R31: 104 | S31: 3.28 | T31: 64.7 | U31: 27200 | V31: 225
A32: W40X167 | B32: W12X22 | C32: W310X32.7 | D32: 22 | E32: 6.48 | F32: 12.3 | G32: 4.03 | H32: 0.26 | I32: 0.425 | J32: 0.725 | K32: 0.625 | L32: 156 | M32: 29.3 | N32: 25.4 | O32: 4.91 | P32: 4.66 | Q32: 3.66 | R32: 2.31 | S32: 0.848 | T32: 0.293 | U32: 164 | V32: 245
A33: W40X149 | B33: W12X230 | C33: W310X342 | D33: 230 | E33: 67.7 | F33: 15.1 | G33: 12.9 | H33: 1.29 | I33: 2.07 | J33: 2.67 | K33: 1.5 | L33: 2420 | M33: 386 | N33: 321 | O33: 5.97 | P33: 742 | Q33: 177 | R33: 115 | S33: 3.31 | T33: 83.8 | U33: 31200 | V33: 224
A34: W36X925 | B34: W12X252 | C34: W310X375 | D34: 252 | E34: 74.1 | F34: 15.4 | G34: 13 | H34: 1.4 | I34: 2.25 | J34: 2.85 | K34: 1.5 | L34: 2720 | M34: 428 | N34: 353 | O34: 6.06 | P34: 828 | Q34: 196 | R34: 127 | S34: 3.34 | T34: 108 | U34: 35800 | V34: 223
A35: W36X853 | B35: W12X26 | C35: W310X38.7 | D35: 26 | E35: 7.65 | F35: 12.2 | G35: 6.49 | H35: 0.23 | I35: 0.38 | J35: 0.68 | K35: 0.75 | L35: 204 | M35: 37.2 | N35: 33.4 | O35: 5.17 | P35: 17.3 | Q35: 8.17 | R35: 5.34 | S35: 1.51 | T35: 0.3 | U35: 607 | V35: 244
A36: W36X802 | B36: W12X279 | C36: W310X415 | D36: 279 | E36: 81.9 | F36: 15.9 | G36: 13.1 | H36: 1.53 | I36: 2.47 | J36: 3.07 | K36: 1.625 | L36: 3110 | M36: 481 | N36: 393 | O36: 6.16 | P36: 937 | Q36: 220 | R36: 143 | S36: 3.38 | T36: 143 | U36: 42000 | V36: 222
A37: W36X723 | B37: W12X30 | C37: W310X44.5 | D37: 30 | E37: 8.79 | F37: 12.3 | G37: 6.52 | H37: 0.26 | I37: 0.44 | J37: 0.74 | K37: 0.75 | L37: 238 | M37: 43.1 | N37: 38.6 | O37: 5.21 | P37: 20.3 | Q37: 9.56 | R37: 6.24 | S37: 1.52 | T37: 0.457 | U37: 720 | V37: 243
A38: W36X652 | B38: W12X305 | C38: W310X454 | D38: 305 | E38: 89.5 | F38: 16.3 | G38: 13.2 | H38: 1.63 | I38: 2.71 | J38: 3.3 | K38: 1.625 | L38: 3550 | M38: 537 | N38: 435 | O38: 6.29 | P38: 1050 | Q38: 244 | R38: 159 | S38: 3.42 | T38: 185 | U38: 48600 | V38: 221
A39: W36X529 | B39: W12X336 | C39: W310X500 | D39: 336 | E39: 98.9 | F39: 16.8 | G39: 13.4 | H39: 1.78 | I39: 2.96 | J39: 3.55 | K39: 1.6875 | L39: 4060 | M39: 603 | N39: 483 | O39: 6.41 | P39: 1190 | Q39: 274 | R39: 177 | S39: 3.47 | T39: 243 | U39: 57000 | V39: 220
A40: W36X487 | B40: W12X35 | C40: W310X52 | D40: 35 | E40: 10.3 | F40: 12.5 | G40: 6.56 | H40: 0.3 | I40: 0.52 | J40: 0.82 | K40: 0.75 | L40: 285 | M40: 51.2 | N40: 45.6 | O40: 5.25 | P40: 24.5 | Q40: 11.5 | R40: 7.47 | S40: 1.54 | T40: 0.741 | U40: 879 | V40: 242
A41: W36X441 | B41: W12X40 | C41: W310X60 | D41: 40 | E41: 11.7 | F41: 11.9 | G41: 8.01 | H41: 0.295 | I41: 0.515 | J41: 1.02 | K41: 0.875 | L41: 307 | M41: 57 | N41: 51.5 | O41: 5.13 | P41: 44.1 | Q41: 16.8 | R41: 11 | S41: 1.94 | T41: 0.906 | U41: 1440 | V41: 241
A42: W36X395 | B42: W12X45 | C42: W310X67 | D42: 45 | E42: 13.1 | F42: 12.1 | G42: 8.05 | H42: 0.335 | I42: 0.575 | J42: 1.08 | K42: 0.9375 | L42: 348 | M42: 64.2 | N42: 57.7 | O42: 5.15 | P42: 50 | Q42: 19 | R42: 12.4 | S42: 1.95 | T42: 1.26 | U42: 1650 | V42: 240
A43: W36X361 | B43: W12X50 | C43: W310X74 | D43: 50 | E43: 14.6 | F43: 12.2 | G43: 8.08 | H43: 0.37 | I43: 0.64 | J43: 1.14 | K43: 0.9375 | L43: 391 | M43: 71.9 | N43: 64.2 | O43: 5.18 | P43: 56.3 | Q43: 21.3 | R43: 13.9 | S43: 1.96 | T43: 1.71 | U43: 1880 | V43: 239
A44: W36X330 | B44: W12X53 | C44: W310X79 | D44: 53 | E44: 15.6 | F44: 12.1 | G44: 10 | H44: 0.345 | I44: 0.575 | J44: 1.18 | K44: 0.9375 | L44: 425 | M44: 77.9 | N44: 70.6 | O44: 5.23 | P44: 95.8 | Q44: 29.1 | R44: 19.2 | S44: 2.48 | T44: 1.58 | U44: 3160 | V44: 238
A45: W36X302 | B45: W12X58 | C45: W310X86 | D45: 58 | E45: 17 | F45: 12.2 | G45: 10 | H45: 0.36 | I45: 0.64 | J45: 1.24 | K45: 0.9375 | L45: 475 | M45: 86.4 | N45: 78 | O45: 5.28 | P45: 107 | Q45: 32.5 | R45: 21.4 | S45: 2.51 | T45: 2.1 | U45: 3570 | V45: 237
A46: W36X282 | B46: W12X65 | C46: W310X97 | D46: 65 | E46: 19.1 | F46: 12.1 | G46: 12 | H46: 0.39 | I46: 0.605 | J46: 1.2 | K46: 1 | L46: 533 | M46: 96.8 | N46: 87.9 | O46: 5.28 | P46: 174 | Q46: 44.1 | R46: 29.1 | S46: 3.02 | T46: 2.18 | U46: 5780 | V46: 236
A47: W36X262 | B47: W12X72 | C47: W310X107 | D47: 72 | E47: 21.1 | F47: 12.3 | G47: 12 | H47: 0.43 | I47: 0.67 | J47: 1.27 | K47: 1.0625 | L47: 597 | M47: 108 | N47: 97.4 | O47: 5.31 | P47: 195 | Q47: 49.2 | R47: 32.4 | S47: 3.04 | T47: 2.93 | U47: 6540 | V47: 235
A48: W36X247 | B48: W12X79 | C48: W310X117 | D48: 79 | E48: 23.2 | F48: 12.4 | G48: 12.1 | H48: 0.47 | I48: 0.735 | J48: 1.33 | K48: 1.0625 | L48: 662 | M48: 119 | N48: 107 | O48: 5.34 | P48: 216 | Q48: 54.3 | R48: 35.8 | S48: 3.05 | T48: 3.84 | U48: 7330 | V48: 234
A49: W36X231 | B49: W12X87 | C49: W310X129 | D49: 87 | E49: 25.6 | F49: 12.5 | G49: 12.1 | H49: 0.515 | I49: 0.81 | J49: 1.41 | K49: 1.0625 | L49: 740 | M49: 132 | N49: 118 | O49: 5.38 | P49: 241 | Q49: 60.4 | R49: 39.7 | S49: 3.07 | T49: 5.1 | U49: 8270 | V49: 233
A50: W36X387 | B50: W12X96 | C50: W310X143 | D50: 96 | E50: 28.2 | F50: 12.7 | G50: 12.2 | H50: 0.55 | I50: 0.9 | J50: 1.5 | K50: 1.125 | L50: 833 | M50: 147 | N50: 131 | O50: 5.44 | P50: 270 | Q50: 67.5 | R50: 44.4 | S50: 3.09 | T50: 6.85 | U50: 9410 | V50: 232
A51: W36X350 | B51: W14X109 | C51: W360X162 | D51: 109 | E51: 32 | F51: 14.3 | G51: 14.6 | H51: 0.525 | I51: 0.86 | J51: 1.46 | K51: 1.5 | L51: 1240 | M51: 192 | N51: 173 | O51: 6.22 | P51: 447 | Q51: 92.7 | R51: 61.2 | S51: 3.73 | T51: 7.12 | U51: 20200 | V51: 205
A52: W36X318 | B52: W14X120 | C52: W360X179 | D52: 120 | E52: 35.3 | F52: 14.5 | G52: 14.7 | H52: 0.59 | I52: 0.94 | J52: 1.54 | K52: 1.5 | L52: 1380 | M52: 212 | N52: 190 | O52: 6.24 | P52: 495 | Q52: 102 | R52: 67.5 | S52: 3.74 | T52: 9.37 | U52: 22700 | V52: 204
A53: W36X286 | B53: W14X132 | C53: W360X196 | D53: 132 | E53: 38.8 | F53: 14.7 | G53: 14.7 | H53: 0.645 | I53: 1.03 | J53: 1.63 | K53: 1.5625 | L53: 1530 | M53: 234 | N53: 209 | O53: 6.28 | P53: 548 | Q53: 113 | R53: 74.5 | S53: 3.76 | T53: 12.3 | U53: 25500 | V53: 203
A54: W36X256 | B54: W14X145 | C54: W360X216 | D54: 145 | E54: 42.7 | F54: 14.8 | G54: 15.5 | H54: 0.68 | I54: 1.09 | J54: 1.69 | K54: 1.5625 | L54: 1710 | M54: 260 | N54: 232 | O54: 6.33 | P54: 677 | Q54: 133 | R54: 87.3 | S54: 3.98 | T54: 15.2 | U54: 31700 | V54: 202
A55: W36X232 | B55: W14X159 | C55: W360X237 | D55: 159 | E55: 46.7 | F55: 15 | G55: 15.6 | H55: 0.745 | I55: 1.19 | J55: 1.79 | K55: 1.5625 | L55: 1900 | M55: 287 | N55: 254 | O55: 6.38 | P55: 748 | Q55: 146 | R55: 96.2 | S55: 4 | T55: 19.7 | U55: 35600 | V55: 201
A56: W36X210 | B56: W14X176 | C56: W360X262 | D56: 176 | E56: 51.8 | F56: 15.2 | G56: 15.7 | H56: 0.83 | I56: 1.31 | J56: 1.91 | K56: 1.625 | L56: 2140 | M56: 320 | N56: 281 | O56: 6.43 | P56: 838 | Q56: 163 | R56: 107 | S56: 4.02 | T56: 26.5 | U56: 40500 | V56: 200
A57: W36X194 | B57: W14X193 | C57: W360X287 | D57: 193 | E57: 56.8 | F57: 15.5 | G57: 15.7 | H57: 0.89 | I57: 1.44 | J57: 2.04 | K57: 1.6875 | L57: 2400 | M57: 355 | N57: 310 | O57: 6.5 | P57: 931 | Q57: 180 | R57: 119 | S57: 4.05 | T57: 34.8 | U57: 45900 | V57: 199
A58: W36X182 | B58: W14X211 | C58: W360X314 | D58: 211 | E58: 62 | F58: 15.7 | G58: 15.8 | H58: 0.98 | I58: 1.56 | J58: 2.16 | K58: 1.6875 | L58: 2660 | M58: 390 | N58: 338 | O58: 6.55 | P58: 1030 | Q58: 198 | R58: 130 | S58: 4.07 | T58: 44.6 | U58: 51500 | V58: 198
A59: W36X170 | B59: W14X22 | C59: W360X32.9 | D59: 22 | E59: 6.49 | F59: 13.7 | G59: 5 | H59: 0.23 | I59: 0.335 | J59: 0.735 | K59: 0.75 | L59: 199 | M59: 33.2 | N59: 29 | O59: 5.54 | P59: 7 | Q59: 4.39 | R59: 2.8 | S59: 1.04 | T59: 0.208 | U59: 314 | V59: 219
A60: W36X160 | B60: W14X233 | C60: W360X347 | D60: 233 | E60: 68.5 | F60: 16 | G60: 15.9 | H60: 1.07 | I60: 1.72 | J60: 2.32 | K60: 1.75 | L60: 3010 | M60: 436 | N60: 375 | O60: 6.63 | P60: 1150 | Q60: 221 | R60: 145 | S60: 4.1 | T60: 59.5 | U60: 59000 | V60: 197
A61: W36X150 | B61: W14X257 | C61: W360X382 | D61: 257 | E61: 75.6 | F61: 16.4 | G61: 16 | H61: 1.18 | I61: 1.89 | J61: 2.49 | K61: 1.8125 | L61: 3400 | M61: 487 | N61: 415 | O61: 6.71 | P61: 1290 | Q61: 246 | R61: 161 | S61: 4.13 | T61: 79.1 | U61: 67800 | V61: 196
A62: W36X135 | B62: W14X26 | C62: W360X39 | D62: 26 | E62: 7.69 | F62: 13.9 | G62: 5.03 | H62: 0.255 | I62: 0.42 | J62: 0.82 | K62: 0.75 | L62: 245 | M62: 40.2 | N62: 35.3 | O62: 5.65 | P62: 8.91 | Q62: 5.54 | R62: 3.55 | S62: 1.08 | T62: 0.358 | U62: 405 | V62: 218
A63: W33X387 | B63: W14X283 | C63: W360X421 | D63: 283 | E63: 83.3 | F63: 16.7 | G63: 16.1 | H63: 1.29 | I63: 2.07 | J63: 2.67 | K63: 1.875 | L63: 3840 | M63: 542 | N63: 459 | O63: 6.79 | P63: 1440 | Q63: 274 | R63: 179 | S63: 4.17 | T63: 104 | U63: 77700 | V63: 195
A64: W33X354 | B64: W14X30 | C64: W360X44 | D64: 30 | E64: 8.85 | F64: 13.8 | G64: 6.73 | H64: 0.27 | I64: 0.385 | J64: 0.785 | K64: 0.75 | L64: 291 | M64: 47.3 | N64: 42 | O64: 5.73 | P64: 19.6 | Q64: 8.99 | R64: 5.82 | S64: 1.49 | T64: 0.38 | U64: 887 | V64: 217
A65: W33X318 | B65: W14X311 | C65: W360X463 | D65: 311 | E65: 91.4 | F65: 17.1 | G65: 16.2 | H65: 1.41 | I65: 2.26 | J65: 2.86 | K65: 1.9375 | L65: 4330 | M65: 603 | N65: 506 | O65: 6.88 | P65: 1610 | Q65: 304 | R65: 199 | S65: 4.2 | T65: 136 | U65: 89100 | V65: 194
A66: W33X291 | B66: W14X34 | C66: W360X51 | D66: 34 | E66: 10 | F66: 14 | G66: 6.75 | H66: 0.285 | I66: 0.455 | J66: 0.855 | K66: 0.75 | L66: 340 | M66: 54.6 | N66: 48.6 | O66: 5.83 | P66: 23.3 | Q66: 10.6 | R66: 6.91 | S66: 1.53 | T66: 0.569 | U66: 1070 | V66: 216
A67: W33X263 | B67: W14X342 | C67: W360X509 | D67: 342 | E67: 101 | F67: 17.5 | G67: 16.4 | H67: 1.54 | I67: 2.47 | J67: 3.07 | K67: 2 | L67: 4900 | M67: 672 | N67: 558 | O67: 6.98 | P67: 1810 | Q67: 338 | R67: 221 | S67: 4.24 | T67: 178 | U67: 103000 | V67: 193
A68: W33X241 | B68: W14X370 | C68: W360X551 | D68: 370 | E68: 109 | F68: 17.9 | G68: 16.5 | H68: 1.66 | I68: 2.66 | J68: 3.26 | K68: 2.0625 | L68: 5440 | M68: 736 | N68: 607 | O68: 7.07 | P68: 1990 | Q68: 370 | R68: 241 | S68: 4.27 | T68: 222 | U68: 116000 | V68: 192
A69: W33X221 | B69: W14X38 | C69: W360X57.8 | D69: 38 | E69: 11.2 | F69: 14.1 | G69: 6.77 | H69: 0.31 | I69: 0.515 | J69: 0.915 | K69: 0.8125 | L69: 385 | M69: 61.5 | N69: 54.6 | O69: 5.87 | P69: 26.7 | Q69: 12.1 | R69: 7.88 | S69: 1.55 | T69: 0.798 | U69: 1230 | V69: 215
A70: W33X201 | B70: W14X398 | C70: W360X592 | D70: 398 | E70: 117 | F70: 18.3 | G70: 16.6 | H70: 1.77 | I70: 2.85 | J70: 3.44 | K70: 2.125 | L70: 6000 | M70: 801 | N70: 656 | O70: 7.16 | P70: 2170 | Q70: 402 | R70: 262 | S70: 4.31 | T70: 273 | U70: 129000 | V70: 191
A71: W33X169 | B71: W14X426 | C71: W360X634 | D71: 426 | E71: 125 | F71: 18.7 | G71: 16.7 | H71: 1.88 | I71: 3.04 | J71: 3.63 | K71: 2.125 | L71: 6600 | M71: 869 | N71: 706 | O71: 7.26 | P71: 2360 | Q71: 434 | R71: 283 | S71: 4.34 | T71: 331 | U71: 144000 | V71: 190
A72: W33X152 | B72: W14X43 | C72: W360X64 | D72: 43 | E72: 12.6 | F72: 13.7 | G72: 8 | H72: 0.305 | I72: 0.53 | J72: 1.12 | K72: 1 | L72: 428 | M72: 69.6 | N72: 62.6 | O72: 5.82 | P72: 45.2 | Q72: 17.3 | R72: 11.3 | S72: 1.89 | T72: 1.05 | U72: 1950 | V72: 214
A73: W33X141 | B73: W14X455 | C73: W360X677 | D73: 455 | E73: 134 | F73: 19 | G73: 16.8 | H73: 2.02 | I73: 3.21 | J73: 3.81 | K73: 2.25 | L73: 7190 | M73: 936 | N73: 756 | O73: 7.33 | P73: 2560 | Q73: 468 | R73: 304 | S73: 4.38 | T73: 395 | U73: 160000 | V73: 189
A74: W33X130 | B74: W14X48 | C74: W360X72 | D74: 48 | E74: 14.1 | F74: 13.8 | G74: 8.03 | H74: 0.34 | I74: 0.595 | J74: 1.19 | K74: 1 | L74: 484 | M74: 78.4 | N74: 70.2 | O74: 5.85 | P74: 51.4 | Q74: 19.6 | R74: 12.8 | S74: 1.91 | T74: 1.45 | U74: 2240 | V74: 213
A75: W33X118 | B75: W14X500 | C75: W360X744 | D75: 500 | E75: 147 | F75: 19.6 | G75: 17 | H75: 2.19 | I75: 3.5 | J75: 4.1 | K75: 2.3125 | L75: 8210 | M75: 1050 | N75: 838 | O75: 7.48 | P75: 2880 | Q75: 522 | R75: 339 | S75: 4.43 | T75: 514 | U75: 187000 | V75: 188
A76: W30X391 | B76: W14X53 | C76: W360X79 | D76: 53 | E76: 15.6 | F76: 13.9 | G76: 8.06 | H76: 0.37 | I76: 0.66 | J76: 1.25 | K76: 1 | L76: 541 | M76: 87.1 | N76: 77.8 | O76: 5.89 | P76: 57.7 | Q76: 22 | R76: 14.3 | S76: 1.92 | T76: 1.94 | U76: 2540 | V76: 212
A77: W30X357 | B77: W14X550 | C77: W360X818 | D77: 550 | E77: 162 | F77: 20.2 | G77: 17.2 | H77: 2.38 | I77: 3.82 | J77: 4.42 | K77: 2.375 | L77: 9430 | M77: 1180 | N77: 931 | O77: 7.63 | P77: 3250 | Q77: 583 | R77: 378 | S77: 4.49 | T77: 669 | U77: 219000 | V77: 187
A78: W30X326 | B78: W14X605 | C78: W360X900 | D78: 605 | E78: 178 | F78: 20.9 | G78: 17.4 | H78: 2.6 | I78: 4.16 | J78: 4.76 | K78: 2.5 | L78: 10800 | M78: 1320 | N78: 1040 | O78: 7.8 | P78: 3680 | Q78: 652 | R78: 423 | S78: 4.55 | T78: 869 | U78: 258000 | V78: 186
A79: W30X292 | B79: W14X61 | C79: W360X91 | D79: 61 | E79: 17.9 | F79: 13.9 | G79: 10 | H79: 0.375 | I79: 0.645 | J79: 1.24 | K79: 1 | L79: 640 | M79: 102 | N79: 92.1 | O79: 5.98 | P79: 107 | Q79: 32.8 | R79: 21.5 | S79: 2.45 | T79: 2.19 | U79: 4710 | V79: 211
A80: W30X261 | B80: W14X665 | C80: W360X990 | D80: 665 | E80: 196 | F80: 21.6 | G80: 17.7 | H80: 2.83 | I80: 4.52 | J80: 5.12 | K80: 2.625 | L80: 12400 | M80: 1480 | N80: 1150 | O80: 7.98 | P80: 4170 | Q80: 730 | R80: 472 | S80: 4.62 | T80: 1120 | U80: 305000 | V80: 185
A81: W30X235 | B81: W14X68 | C81: W360X101 | D81: 68 | E81: 20 | F81: 14 | G81: 10 | H81: 0.415 | I81: 0.72 | J81: 1.31 | K81: 1.0625 | L81: 722 | M81: 115 | N81: 103 | O81: 6.01 | P81: 121 | Q81: 36.9 | R81: 24.2 | S81: 2.46 | T81: 3.01 | U81: 5380 | V81: 210
A82: W30X211 | B82: W14X730 | C82: W360X1086 | D82: 730 | E82: 215 | F82: 22.4 | G82: 17.9 | H82: 3.07 | I82: 4.91 | J82: 5.51 | K82: 2.75 | L82: 14300 | M82: 1660 | N82: 1280 | O82: 8.17 | P82: 4720 | Q82: 816 | R82: 527 | S82: 4.69 | T82: 1450 | U82: 362000 | V82: 184
A83: W30X191 | B83: W14X74 | C83: W360X110 | D83: 74 | E83: 21.8 | F83: 14.2 | G83: 10.1 | H83: 0.45 | I83: 0.785 | J83: 1.38 | K83: 1.0625 | L83: 795 | M83: 126 | N83: 112 | O83: 6.04 | P83: 134 | Q83: 40.5 | R83: 26.6 | S83: 2.48 | T83: 3.87 | U83: 5990 | V83: 209
A84: W30X173 | B84: W14X808 | C84: W360X1202 | D84: 808 | E84: 238 | F84: 22.8 | G84: 18.6 | H84: 3.74 | I84: 5.12 | J84: 5.71 | K84: 2.5 | L84: 15900 | M84: 1830 | N84: 1390 | O84: 8.17 | P84: 5550 | Q84: 930 | R84: 597 | S84: 4.83 | T84: 1840 | U84: 434000 | V84: 183
A85: W30X148 | B85: W14X82 | C85: W360X122 | D85: 82 | E85: 24 | F85: 14.3 | G85: 10.1 | H85: 0.51 | I85: 0.855 | J85: 1.45 | K85: 1.0625 | L85: 881 | M85: 139 | N85: 123 | O85: 6.05 | P85: 148 | Q85: 44.8 | R85: 29.3 | S85: 2.48 | T85: 5.07 | U85: 6710 | V85: 208
A86: W30X132 | B86: W14X873 | C86: W360X1299 | D86: 873 | E86: 257 | F86: 23.6 | G86: 18.8 | H86: 3.94 | I86: 5.51 | J86: 6.1 | K86: 2.5625 | L86: 18100 | M86: 2030 | N86: 1530 | O86: 8.39 | P86: 6170 | Q86: 1020 | R86: 656 | S86: 4.9 | T86: 2270 | U86: 505000 | V86: 182
A87: W30X124 | B87: W14X90 | C87: W360X134 | D87: 90 | E87: 26.5 | F87: 14 | G87: 14.5 | H87: 0.44 | I87: 0.71 | J87: 1.31 | K87: 1.4375 | L87: 999 | M87: 157 | N87: 143 | O87: 6.14 | P87: 362 | Q87: 75.6 | R87: 49.9 | S87: 3.7 | T87: 4.06 | U87: 16000 | V87: 207
A88: W30X116 | B88: W14X99 | C88: W360X147 | D88: 99 | E88: 29.1 | F88: 14.2 | G88: 14.6 | H88: 0.485 | I88: 0.78 | J88: 1.38 | K88: 1.4375 | L88: 1110 | M88: 173 | N88: 157 | O88: 6.17 | P88: 402 | Q88: 83.6 | R88: 55.2 | S88: 3.71 | T88: 5.37 | U88: 18000 | V88: 206
A89: W30X108 | B89: W16X100 | C89: W410X149 | D89: 100 | E89: 29.4 | F89: 17 | G89: 10.4 | H89: 0.585 | I89: 0.985 | J89: 1.39 | K89: 1.125 | L89: 1490 | M89: 198 | N89: 175 | O89: 7.1 | P89: 186 | Q89: 54.9 | R89: 35.7 | S89: 2.51 | T89: 7.73 | U89: 11900 | V89: 171
A90: W30X99 | B90: W16X26 | C90: W410X38.8 | D90: 26 | E90: 7.68 | F90: 15.7 | G90: 5.5 | H90: 0.25 | I90: 0.345 | J90: 0.747 | K90: 0.75 | L90: 301 | M90: 44.2 | N90: 38.4 | O90: 6.26 | P90: 9.59 | Q90: 5.48 | R90: 3.49 | S90: 1.12 | T90: 0.262 | U90: 565 | V90: 181
A91: W30X90 | B91: W16X31 | C91: W410X46.1 | D91: 31 | E91: 9.13 | F91: 15.9 | G91: 5.53 | H91: 0.275 | I91: 0.44 | J91: 0.842 | K91: 0.75 | L91: 375 | M91: 54 | N91: 47.2 | O91: 6.41 | P91: 12.4 | Q91: 7.03 | R91: 4.49 | S91: 1.17 | T91: 0.461 | U91: 739 | V91: 180
A92: W27X539 | B92: W16X36 | C92: W410X53 | D92: 36 | E92: 10.6 | F92: 15.9 | G92: 6.99 | H92: 0.295 | I92: 0.43 | J92: 0.832 | K92: 0.75 | L92: 448 | M92: 64 | N92: 56.5 | O92: 6.51 | P92: 24.5 | Q92: 10.8 | R92: 7 | S92: 1.52 | T92: 0.545 | U92: 1460 | V92: 179
A93: W27X368 | B93: W16X40 | C93: W410X60 | D93: 40 | E93: 11.8 | F93: 16 | G93: 7 | H93: 0.305 | I93: 0.505 | J93: 0.907 | K93: 0.8125 | L93: 518 | M93: 73 | N93: 64.7 | O93: 6.63 | P93: 28.9 | Q93: 12.7 | R93: 8.25 | S93: 1.57 | T93: 0.794 | U93: 1730 | V93: 178
A94: W27X336 | B94: W16X45 | C94: W410X67 | D94: 45 | E94: 13.3 | F94: 16.1 | G94: 7.04 | H94: 0.345 | I94: 0.565 | J94: 0.967 | K94: 0.8125 | L94: 586 | M94: 82.3 | N94: 72.7 | O94: 6.65 | P94: 32.8 | Q94: 14.5 | R94: 9.34 | S94: 1.57 | T94: 1.11 | U94: 1990 | V94: 177
A95: W27X307 | B95: W16X50 | C95: W410X75 | D95: 50 | E95: 14.7 | F95: 16.3 | G95: 7.07 | H95: 0.38 | I95: 0.63 | J95: 1.03 | K95: 0.8125 | L95: 659 | M95: 92 | N95: 81 | O95: 6.68 | P95: 37.2 | Q95: 16.3 | R95: 10.5 | S95: 1.59 | T95: 1.52 | U95: 2270 | V95: 176
A96: W27X281 | B96: W16X57 | C96: W410X85 | D96: 57 | E96: 16.8 | F96: 16.4 | G96: 7.12 | H96: 0.43 | I96: 0.715 | J96: 1.12 | K96: 0.875 | L96: 758 | M96: 105 | N96: 92.2 | O96: 6.72 | P96: 43.1 | Q96: 18.9 | R96: 12.1 | S96: 1.6 | T96: 2.22 | U96: 2660 | V96: 175
A97: W27X258 | B97: W16X67 | C97: W410X100 | D97: 67 | E97: 19.6 | F97: 16.3 | G97: 10.2 | H97: 0.395 | I97: 0.665 | J97: 1.07 | K97: 1 | L97: 954 | M97: 130 | N97: 117 | O97: 6.96 | P97: 119 | Q97: 35.5 | R97: 23.2 | S97: 2.46 | T97: 2.39 | U97: 7300 | V97: 174
A98: W27X235 | B98: W16X77 | C98: W410X114 | D98: 77 | E98: 22.6 | F98: 16.5 | G98: 10.3 | H98: 0.455 | I98: 0.76 | J98: 1.16 | K98: 1.0625 | L98: 1110 | M98: 150 | N98: 134 | O98: 7 | P98: 138 | Q98: 41.1 | R98: 26.9 | S98: 2.47 | T98: 3.57 | U98: 8590 | V98: 173
A99: W27X217 | B99: W16X89 | C99: W410X132 | D99: 89 | E99: 26.2 | F99: 16.8 | G99: 10.4 | H99: 0.525 | I99: 0.875 | J99: 1.28 | K99: 1.0625 | L99: 1300 | M99: 175 | N99: 155 | O99: 7.05 | P99: 163 | Q99: 48.1 | R99: 31.4 | S99: 2.49 | T99: 5.45 | U99: 10200 | V99: 172
A100: W27X194 | B100: W18X106 | C100: W460X158 | D100: 106 | E100: 31.1 | F100: 18.7 | G100: 11.2 | H100: 0.59 | I100: 0.94 | J100: 1.34 | K100: 1.125 | L100: 1910 | M100: 230 | N100: 204 | O100: 7.84 | P100: 220 | Q100: 60.5 | R100: 39.4 | S100: 2.66 | T100: 7.48 | U100: 17400 | V100: 159
A101: W27X178 | B101: W18X119 | C101: W460X177 | D101: 119 | E101: 35.1 | F101: 19 | G101: 11.3 | H101: 0.655 | I101: 1.06 | J101: 1.46 | K101: 1.1875 | L101: 2190 | M101: 262 | N101: 231 | O101: 7.9 | P101: 253 | Q101: 69.1 | R101: 44.9 | S101: 2.69 | T101: 10.6 | U101: 20300 | V101: 158
A102: W27X161 | B102: W18X130 | C102: W460X193 | D102: 130 | E102: 38.3 | F102: 19.3 | G102: 11.2 | H102: 0.67 | I102: 1.2 | J102: 1.6 | K102: 1.1875 | L102: 2460 | M102: 290 | N102: 256 | O102: 8.03 | P102: 278 | Q102: 76.7 | R102: 49.9 | S102: 2.7 | T102: 14.5 | U102: 22700 | V102: 157
A103: W27X146 | B103: W18X143 | C103: W460X213 | D103: 143 | E103: 42 | F103: 19.5 | G103: 11.2 | H103: 0.73 | I103: 1.32 | J103: 1.72 | K103: 1.1875 | L103: 2750 | M103: 322 | N103: 282 | O103: 8.09 | P103: 311 | Q103: 85.4 | R103: 55.5 | S103: 2.72 | T103: 19.2 | U103: 25700 | V103: 156
A104: W27X129 | B104: W18X158 | C104: W460X235 | D104: 158 | E104: 46.3 | F104: 19.7 | G104: 11.3 | H104: 0.81 | I104: 1.44 | J104: 1.84 | K104: 1.25 | L104: 3060 | M104: 356 | N104: 310 | O104: 8.12 | P104: 347 | Q104: 94.8 | R104: 61.4 | S104: 2.74 | T104: 25.2 | U104: 29000 | V104: 155
A105: W27X114 | B105: W18X175 | C105: W460X260 | D105: 175 | E105: 51.4 | F105: 20 | G105: 11.4 | H105: 0.89 | I105: 1.59 | J105: 1.99 | K105: 1.25 | L105: 3450 | M105: 398 | N105: 344 | O105: 8.2 | P105: 391 | Q105: 106 | R105: 68.8 | S105: 2.76 | T105: 33.8 | U105: 33300 | V105: 154
A106: W27X102 | B106: W18X192 | C106: W460X286 | D106: 192 | E106: 56.2 | F106: 20.4 | G106: 11.5 | H106: 0.96 | I106: 1.75 | J106: 2.15 | K106: 1.3125 | L106: 3870 | M106: 442 | N106: 380 | O106: 8.28 | P106: 440 | Q106: 119 | R106: 76.8 | S106: 2.79 | T106: 44.7 | U106: 38000 | V106: 153
A107: W27X94 | B107: W18X211 | C107: W460X315 | D107: 211 | E107: 62.3 | F107: 20.7 | G107: 11.6 | H107: 1.06 | I107: 1.91 | J107: 2.31 | K107: 1.375 | L107: 4330 | M107: 490 | N107: 419 | O107: 8.35 | P107: 493 | Q107: 132 | R107: 85.3 | S107: 2.82 | T107: 58.6 | U107: 43400 | V107: 152
A108: W27X84 | B108: W18X234 | C108: W460X349 | D108: 234 | E108: 68.6 | F108: 21.1 | G108: 11.7 | H108: 1.16 | I108: 2.11 | J108: 2.51 | K108: 1.375 | L108: 4900 | M108: 549 | N108: 466 | O108: 8.44 | P108: 558 | Q108: 149 | R108: 95.8 | S108: 2.85 | T108: 78.7 | U108: 50100 | V108: 151
A109: W24X370 | B109: W18X258 | C109: W460X384 | D109: 258 | E109: 76 | F109: 21.5 | G109: 11.8 | H109: 1.28 | I109: 2.3 | J109: 2.7 | K109: 1.4375 | L109: 5510 | M109: 611 | N109: 514 | O109: 8.53 | P109: 628 | Q109: 166 | R109: 107 | S109: 2.88 | T109: 103 | U109: 57600 | V109: 150
A110: W24X335 | B110: W18X283 | C110: W460X421 | D110: 283 | E110: 83.3 | F110: 21.9 | G110: 11.9 | H110: 1.4 | I110: 2.5 | J110: 3 | K110: 1.5 | L110: 6170 | M110: 676 | N110: 565 | O110: 8.61 | P110: 704 | Q110: 185 | R110: 118 | S110: 2.91 | T110: 134 | U110: 65900 | V110: 149
A111: W24X306 | B111: W18X311 | C111: W460X464 | D111: 311 | E111: 91.6 | F111: 22.3 | G111: 12 | H111: 1.52 | I111: 2.74 | J111: 3.24 | K111: 1.5625 | L111: 6970 | M111: 754 | N111: 624 | O111: 8.72 | P111: 795 | Q111: 207 | R111: 132 | S111: 2.95 | T111: 176 | U111: 76200 | V111: 148
A112: W24X279 | B112: W18X35 | C112: W460X52 | D112: 35 | E112: 10.3 | F112: 17.7 | G112: 6 | H112: 0.3 | I112: 0.425 | J112: 0.827 | K112: 0.75 | L112: 510 | M112: 66.5 | N112: 57.6 | O112: 7.04 | P112: 15.3 | Q112: 8.06 | R112: 5.12 | S112: 1.22 | T112: 0.506 | U112: 1140 | V112: 170
A113: W24X250 | B113: W18X40 | C113: W460X60 | D113: 40 | E113: 11.8 | F113: 17.9 | G113: 6.02 | H113: 0.315 | I113: 0.525 | J113: 0.927 | K113: 0.8125 | L113: 612 | M113: 78.4 | N113: 68.4 | O113: 7.21 | P113: 19.1 | Q113: 10 | R113: 6.35 | S113: 1.27 | T113: 0.81 | U113: 1440 | V113: 169
A114: W24X229 | B114: W18X46 | C114: W460X68 | D114: 46 | E114: 13.5 | F114: 18.1 | G114: 6.06 | H114: 0.36 | I114: 0.605 | J114: 1.01 | K114: 0.8125 | L114: 712 | M114: 90.7 | N114: 78.8 | O114: 7.25 | P114: 22.5 | Q114: 11.7 | R114: 7.43 | S114: 1.29 | T114: 1.22 | U114: 1720 | V114: 168
A115: W24X207 | B115: W18X50 | C115: W460X74 | D115: 50 | E115: 14.7 | F115: 18 | G115: 7.5 | H115: 0.355 | I115: 0.57 | J115: 0.972 | K115: 0.8125 | L115: 800 | M115: 101 | N115: 88.9 | O115: 7.38 | P115: 40.1 | Q115: 16.6 | R115: 10.7 | S115: 1.65 | T115: 1.24 | U115: 3040 | V115: 167
A116: W24X192 | B116: W18X55 | C116: W460X82 | D116: 55 | E116: 16.2 | F116: 18.1 | G116: 7.53 | H116: 0.39 | I116: 0.63 | J116: 1.03 | K116: 0.8125 | L116: 890 | M116: 112 | N116: 98.3 | O116: 7.41 | P116: 44.9 | Q116: 18.5 | R116: 11.9 | S116: 1.67 | T116: 1.66 | U116: 3430 | V116: 166
A117: W24X176 | B117: W18X60 | C117: W460X89 | D117: 60 | E117: 17.6 | F117: 18.2 | G117: 7.56 | H117: 0.415 | I117: 0.695 | J117: 1.1 | K117: 0.8125 | L117: 984 | M117: 123 | N117: 108 | O117: 7.47 | P117: 50.1 | Q117: 20.6 | R117: 13.3 | S117: 1.68 | T117: 2.17 | U117: 3850 | V117: 165
A118: W24X162 | B118: W18X65 | C118: W460X97 | D118: 65 | E118: 19.1 | F118: 18.4 | G118: 7.59 | H118: 0.45 | I118: 0.75 | J118: 1.15 | K118: 0.875 | L118: 1070 | M118: 133 | N118: 117 | O118: 7.49 | P118: 54.8 | Q118: 22.5 | R118: 14.4 | S118: 1.69 | T118: 2.73 | U118: 4240 | V118: 164
A119: W24X146 | B119: W18X71 | C119: W460X106 | D119: 71 | E119: 20.9 | F119: 18.5 | G119: 7.64 | H119: 0.495 | I119: 0.81 | J119: 1.21 | K119: 0.875 | L119: 1170 | M119: 146 | N119: 127 | O119: 7.5 | P119: 60.3 | Q119: 24.7 | R119: 15.8 | S119: 1.7 | T119: 3.49 | U119: 4700 | V119: 163
A120: W24X131 | B120: W18X76 | C120: W460X113 | D120: 76 | E120: 22.3 | F120: 18.2 | G120: 11 | H120: 0.425 | I120: 0.68 | J120: 1.08 | K120: 1.0625 | L120: 1330 | M120: 163 | N120: 146 | O120: 7.73 | P120: 152 | Q120: 42.2 | R120: 27.6 | S120: 2.61 | T120: 2.83 | U120: 11700 | V120: 162
A121: W24X117 | B121: W18X86 | C121: W460X128 | D121: 86 | E121: 25.3 | F121: 18.4 | G121: 11.1 | H121: 0.48 | I121: 0.77 | J121: 1.17 | K121: 1.0625 | L121: 1530 | M121: 186 | N121: 166 | O121: 7.77 | P121: 175 | Q121: 48.4 | R121: 31.6 | S121: 2.63 | T121: 4.1 | U121: 13600 | V121: 161
A122: W24X104 | B122: W18X97 | C122: W460X144 | D122: 97 | E122: 28.5 | F122: 18.6 | G122: 11.1 | H122: 0.535 | I122: 0.87 | J122: 1.27 | K122: 1.125 | L122: 1750 | M122: 211 | N122: 188 | O122: 7.82 | P122: 201 | Q122: 55.3 | R122: 36.1 | S122: 2.65 | T122: 5.86 | U122: 15800 | V122: 160
A123: W24X103 | B123: W21X101 | C123: W530X150 | D123: 101 | E123: 29.8 | F123: 21.4 | G123: 12.3 | H123: 0.5 | I123: 0.8 | J123: 1.3 | K123: 1.4375 | L123: 2420 | M123: 253 | N123: 227 | O123: 9.02 | P123: 248 | Q123: 61.7 | R123: 40.3 | S123: 2.89 | T123: 5.21 | U123: 26200 | V123: 137
A124: W24X94 | B124: W21X111 | C124: W530X165 | D124: 111 | E124: 32.6 | F124: 21.5 | G124: 12.3 | H124: 0.55 | I124: 0.875 | J124: 1.38 | K124: 1.5 | L124: 2670 | M124: 279 | N124: 249 | O124: 9.05 | P124: 274 | Q124: 68.2 | R124: 44.5 | S124: 2.9 | T124: 6.83 | U124: 29200 | V124: 136
A125: W24X84 | B125: W21X122 | C125: W530X182 | D125: 122 | E125: 35.9 | F125: 21.7 | G125: 12.4 | H125: 0.6 | I125: 0.96 | J125: 1.46 | K125: 1.5 | L125: 2960 | M125: 307 | N125: 273 | O125: 9.09 | P125: 305 | Q125: 75.6 | R125: 49.2 | S125: 2.92 | T125: 8.98 | U125: 32700 | V125: 135
A126: W24X76 | B126: W21X132 | C126: W530X196 | D126: 132 | E126: 38.8 | F126: 21.8 | G126: 12.4 | H126: 0.65 | I126: 1.04 | J126: 1.54 | K126: 1.5625 | L126: 3220 | M126: 333 | N126: 295 | O126: 9.12 | P126: 333 | Q126: 82.3 | R126: 53.5 | S126: 2.93 | T126: 11.3 | U126: 36000 | V126: 134
A127: W24X68 | B127: W21X147 | C127: W530X219 | D127: 147 | E127: 43.2 | F127: 22.1 | G127: 12.5 | H127: 0.72 | I127: 1.15 | J127: 1.65 | K127: 1.5625 | L127: 3630 | M127: 373 | N127: 329 | O127: 9.17 | P127: 376 | Q127: 92.6 | R127: 60.1 | S127: 2.95 | T127: 15.4 | U127: 41100 | V127: 133
A128: W24X62 | B128: W21X166 | C128: W530X248 | D128: 166 | E128: 48.8 | F128: 22.5 | G128: 12.4 | H128: 0.75 | I128: 1.36 | J128: 1.86 | K128: 1.5625 | L128: 4280 | M128: 432 | N128: 380 | O128: 9.36 | P128: 435 | Q128: 108 | R128: 70 | S128: 2.99 | T128: 23.6 | U128: 48500 | V128: 132
A129: W24X55 | B129: W21X182 | C129: W530X272 | D129: 182 | E129: 53.6 | F129: 22.7 | G129: 12.5 | H129: 0.83 | I129: 1.48 | J129: 1.98 | K129: 1.625 | L129: 4730 | M129: 476 | N129: 417 | O129: 9.4 | P129: 483 | Q129: 119 | R129: 77.2 | S129: 3 | T129: 30.7 | U129: 54400 | V129: 131
A130: W21X275 | B130: W21X201 | C130: W530X300 | D130: 201 | E130: 59.3 | F130: 23 | G130: 12.6 | H130: 0.91 | I130: 1.63 | J130: 2.13 | K130: 1.6875 | L130: 5310 | M130: 530 | N130: 461 | O130: 9.47 | P130: 542 | Q130: 133 | R130: 86.1 | S130: 3.02 | T130: 40.9 | U130: 62000 | V130: 130
A131: W21X248 | B131: W21X223 | C131: W530X332 | D131: 223 | E131: 66.5 | F131: 23.4 | G131: 12.7 | H131: 1 | I131: 1.79 | J131: 2.97 | K131: 1.6875 | L131: 6080 | M131: 601 | N131: 520 | O131: 9.56 | P131: 614 | Q131: 150 | R131: 96.7 | S131: 3.04 | T131: 59.5 | U131: 71700 | V131: 129
A132: W21X223 | B132: W21X248 | C132: W530X369 | D132: 248 | E132: 73.8 | F132: 23.7 | G132: 12.8 | H132: 1.1 | I132: 1.99 | J132: 3.17 | K132: 1.75 | L132: 6830 | M132: 671 | N132: 576 | O132: 9.62 | P132: 699 | Q132: 170 | R132: 109 | S132: 3.08 | T132: 80.7 | U132: 82400 | V132: 128
A133: W21X201 | B133: W21X275 | C133: W530X409 | D133: 275 | E133: 81.8 | F133: 24.1 | G133: 12.9 | H133: 1.22 | I133: 2.19 | J133: 3.37 | K133: 1.8125 | L133: 7690 | M133: 749 | N133: 638 | O133: 9.7 | P133: 787 | Q133: 191 | R133: 122 | S133: 3.1 | T133: 107 | U133: 94400 | V133: 127
A134: W21X182 | B134: W21X44 | C134: W530X66 | D134: 44 | E134: 13 | F134: 20.7 | G134: 6.5 | H134: 0.35 | I134: 0.45 | J134: 0.95 | K134: 0.8125 | L134: 843 | M134: 95.4 | N134: 81.6 | O134: 8.06 | P134: 20.7 | Q134: 10.2 | R134: 6.37 | S134: 1.26 | T134: 0.77 | U134: 2110 | V134: 147
A135: W21X166 | B135: W21X48 | C135: W530X72 | D135: 48 | E135: 14.1 | F135: 20.6 | G135: 8.14 | H135: 0.35 | I135: 0.43 | J135: 0.93 | K135: 0.8125 | L135: 959 | M135: 107 | N135: 93 | O135: 8.24 | P135: 38.7 | Q135: 14.9 | R135: 9.52 | S135: 1.66 | T135: 0.803 | U135: 3950 | V135: 144
A136: W21X147 | B136: W21X50 | C136: W530X74 | D136: 50 | E136: 14.7 | F136: 20.8 | G136: 6.53 | H136: 0.38 | I136: 0.535 | J136: 1.04 | K136: 0.8125 | L136: 984 | M136: 110 | N136: 94.5 | O136: 8.18 | P136: 24.9 | Q136: 12.2 | R136: 7.64 | S136: 1.3 | T136: 1.14 | U136: 2570 | V136: 146
A137: W21X132 | B137: W21X55 | C137: W530X82 | D137: 55 | E137: 16.2 | F137: 20.8 | G137: 8.22 | H137: 0.375 | I137: 0.522 | J137: 1.02 | K137: 0.8125 | L137: 1140 | M137: 126 | N137: 110 | O137: 8.4 | P137: 48.4 | Q137: 18.4 | R137: 11.8 | S137: 1.73 | T137: 1.24 | U137: 4980 | V137: 143
A138: W21X122 | B138: W21X57 | C138: W530X85 | D138: 57 | E138: 16.7 | F138: 21.1 | G138: 6.56 | H138: 0.405 | I138: 0.65 | J138: 1.15 | K138: 0.8125 | L138: 1170 | M138: 129 | N138: 111 | O138: 8.36 | P138: 30.6 | Q138: 14.8 | R138: 9.35 | S138: 1.35 | T138: 1.77 | U138: 3190 | V138: 145
A139: W21X111 | B139: W21X62 | C139: W530X92 | D139: 62 | E139: 18.3 | F139: 21 | G139: 8.24 | H139: 0.4 | I139: 0.615 | J139: 1.12 | K139: 0.8125 | L139: 1330 | M139: 144 | N139: 127 | O139: 8.54 | P139: 57.5 | Q139: 21.7 | R139: 14 | S139: 1.77 | T139: 1.83 | U139: 5960 | V139: 142
A140: W21X101 | B140: W21X68 | C140: W530X101 | D140: 68 | E140: 20 | F140: 21.1 | G140: 8.27 | H140: 0.43 | I140: 0.685 | J140: 1.19 | K140: 0.875 | L140: 1480 | M140: 160 | N140: 140 | O140: 8.6 | P140: 64.7 | Q140: 24.4 | R140: 15.7 | S140: 1.8 | T140: 2.45 | U140: 6760 | V140: 141
A141: W21X93 | B141: W21X73 | C141: W530X109 | D141: 73 | E141: 21.5 | F141: 21.2 | G141: 8.3 | H141: 0.455 | I141: 0.74 | J141: 1.24 | K141: 0.875 | L141: 1600 | M141: 172 | N141: 151 | O141: 8.64 | P141: 70.6 | Q141: 26.6 | R141: 17 | S141: 1.81 | T141: 3.02 | U141: 7410 | V141: 140
A142: W21X83 | B142: W21X83 | C142: W530X123 | D142: 83 | E142: 24.4 | F142: 21.4 | G142: 8.36 | H142: 0.515 | I142: 0.835 | J142: 1.34 | K142: 0.875 | L142: 1830 | M142: 196 | N142: 171 | O142: 8.67 | P142: 81.4 | Q142: 30.5 | R142: 19.5 | S142: 1.83 | T142: 4.34 | U142: 8630 | V142: 139
A143: W21X73 | B143: W21X93 | C143: W530X138 | D143: 93 | E143: 27.3 | F143: 21.6 | G143: 8.42 | H143: 0.58 | I143: 0.93 | J143: 1.43 | K143: 0.9375 | L143: 2070 | M143: 221 | N143: 192 | O143: 8.7 | P143: 92.9 | Q143: 34.7 | R143: 22.1 | S143: 1.84 | T143: 6.03 | U143: 9940 | V143: 138
A144: W21X68 | B144: W24X103 | C144: W610X153 | D144: 103 | E144: 30.3 | F144: 24.5 | G144: 9 | H144: 0.55 | I144: 0.98 | J144: 1.48 | K144: 1.5 | L144: 3000 | M144: 280 | N144: 245 | O144: 10 | P144: 119 | Q144: 41.5 | R144: 26.5 | S144: 1.99 | T144: 7.07 | U144: 16600 | V144: 120
A145: W21X62 | B145: W24X104 | C145: W610X155 | D145: 104 | E145: 30.7 | F145: 24.1 | G145: 12.8 | H145: 0.5 | I145: 0.75 | J145: 1.25 | K145: 1.4375 | L145: 3100 | M145: 289 | N145: 258 | O145: 10.1 | P145: 259 | Q145: 62.4 | R145: 40.7 | S145: 2.91 | T145: 4.72 | U145: 35200 | V145: 119
A146: W21X55 | B146: W24X117 | C146: W610X174 | D146: 117 | E146: 34.4 | F146: 24.3 | G146: 12.8 | H146: 0.55 | I146: 0.85 | J146: 1.35 | K146: 1.5 | L146: 3540 | M146: 327 | N146: 291 | O146: 10.1 | P146: 297 | Q146: 71.4 | R146: 46.5 | S146: 2.94 | T146: 6.72 | U146: 40800 | V146: 118
A147: W21X48 | B147: W24X131 | C147: W610X195 | D147: 131 | E147: 38.6 | F147: 24.5 | G147: 12.9 | H147: 0.605 | I147: 0.96 | J147: 1.46 | K147: 1.5 | L147: 4020 | M147: 370 | N147: 329 | O147: 10.2 | P147: 340 | Q147: 81.5 | R147: 53 | S147: 2.97 | T147: 9.5 | U147: 47100 | V147: 117
A148: W21X57 | B148: W24X146 | C148: W610X217 | D148: 146 | E148: 43 | F148: 24.7 | G148: 12.9 | H148: 0.65 | I148: 1.09 | J148: 1.59 | K148: 1.5625 | L148: 4580 | M148: 418 | N148: 371 | O148: 10.3 | P148: 391 | Q148: 93.2 | R148: 60.5 | S148: 3.01 | T148: 13.4 | U148: 54600 | V148: 116
A149: W21X50 | B149: W24X162 | C149: W610X241 | D149: 162 | E149: 47.8 | F149: 25 | G149: 13 | H149: 0.705 | I149: 1.22 | J149: 1.72 | K149: 1.5625 | L149: 5170 | M149: 468 | N149: 414 | O149: 10.4 | P149: 443 | Q149: 105 | R149: 68.4 | S149: 3.05 | T149: 18.5 | U149: 62600 | V149: 115
A150: W21X44 | B150: W24X176 | C150: W610X262 | D150: 176 | E150: 51.7 | F150: 25.2 | G150: 12.9 | H150: 0.75 | I150: 1.34 | J150: 1.84 | K150: 1.5625 | L150: 5680 | M150: 511 | N150: 450 | O150: 10.5 | P150: 479 | Q150: 115 | R150: 74.3 | S150: 3.04 | T150: 23.9 | U150: 68400 | V150: 114
A151: W18X311 | B151: W24X192 | C151: W610X285 | D151: 192 | E151: 56.5 | F151: 25.5 | G151: 13 | H151: 0.81 | I151: 1.46 | J151: 1.96 | K151: 1.625 | L151: 6260 | M151: 559 | N151: 491 | O151: 10.5 | P151: 530 | Q151: 126 | R151: 81.8 | S151: 3.07 | T151: 30.8 | U151: 76300 | V151: 113
A152: W18X283 | B152: W24X207 | C152: W610X307 | D152: 207 | E152: 60.7 | F152: 25.7 | G152: 13 | H152: 0.87 | I152: 1.57 | J152: 2.07 | K152: 1.625 | L152: 6820 | M152: 606 | N152: 531 | O152: 10.6 | P152: 578 | Q152: 137 | R152: 88.8 | S152: 3.08 | T152: 38.3 | U152: 84100 | V152: 112
A153: W18X258 | B153: W24X229 | C153: W610X341 | D153: 229 | E153: 67.2 | F153: 26 | G153: 13.1 | H153: 0.96 | I153: 1.73 | J153: 2.23 | K153: 1.6875 | L153: 7650 | M153: 675 | N153: 588 | O153: 10.7 | P153: 651 | Q153: 154 | R153: 99.4 | S153: 3.11 | T153: 51.3 | U153: 96100 | V153: 111
A154: W18X234 | B154: W24X250 | C154: W610X372 | D154: 250 | E154: 73.5 | F154: 26.3 | G154: 13.2 | H154: 1.04 | I154: 1.89 | J154: 2.39 | K154: 1.75 | L154: 8490 | M154: 744 | N154: 644 | O154: 10.7 | P154: 724 | Q154: 171 | R154: 110 | S154: 3.14 | T154: 66.6 | U154: 108000 | V154: 110
A155: W18X211 | B155: W24X279 | C155: W610X415 | D155: 279 | E155: 81.9 | F155: 26.7 | G155: 13.3 | H155: 1.16 | I155: 2.09 | J155: 2.59 | K155: 1.8125 | L155: 9600 | M155: 835 | N155: 718 | O155: 10.8 | P155: 823 | Q155: 193 | R155: 124 | S155: 3.17 | T155: 90.5 | U155: 125000 | V155: 109
A156: W18X192 | B156: W24X306 | C156: W610X455 | D156: 306 | E156: 89.7 | F156: 27.1 | G156: 13.4 | H156: 1.26 | I156: 2.28 | J156: 2.78 | K156: 1.8125 | L156: 10700 | M156: 922 | N156: 789 | O156: 10.9 | P156: 919 | Q156: 214 | R156: 137 | S156: 3.2 | T156: 117 | U156: 142000 | V156: 108
A157: W18X175 | B157: W24X335 | C157: W610X498 | D157: 335 | E157: 98.3 | F157: 27.5 | G157: 13.5 | H157: 1.38 | I157: 2.48 | J157: 2.98 | K157: 1.875 | L157: 11900 | M157: 1020 | N157: 864 | O157: 11 | P157: 1030 | Q157: 238 | R157: 152 | S157: 3.23 | T157: 152 | U157: 161000 | V157: 107
A158: W18X158 | B158: W24X370 | C158: W610X551 | D158: 370 | E158: 109 | F158: 28 | G158: 13.7 | H158: 1.52 | I158: 2.72 | J158: 3.22 | K158: 2 | L158: 13400 | M158: 1130 | N158: 957 | O158: 11.1 | P158: 1160 | Q158: 267 | R158: 170 | S158: 3.27 | T158: 201 | U158: 186000 | V158: 106
A159: W18X143 | B159: W24X55 | C159: W610X82 | D159: 55 | E159: 16.2 | F159: 23.6 | G159: 7.01 | H159: 0.395 | I159: 0.505 | J159: 1.01 | K159: 1 | L159: 1350 | M159: 134 | N159: 114 | O159: 9.11 | P159: 29.1 | Q159: 13.3 | R159: 8.3 | S159: 1.34 | T159: 1.18 | U159: 3870 | V159: 126
A160: W18X130 | B160: W24X62 | C160: W610X92 | D160: 62 | E160: 18.2 | F160: 23.7 | G160: 7.04 | H160: 0.43 | I160: 0.59 | J160: 1.09 | K160: 1.0625 | L160: 1550 | M160: 153 | N160: 131 | O160: 9.23 | P160: 34.5 | Q160: 15.7 | R160: 9.8 | S160: 1.38 | T160: 1.71 | U160: 4620 | V160: 125
A161: W18X119 | B161: W24X68 | C161: W610X101 | D161: 68 | E161: 20.1 | F161: 23.7 | G161: 8.97 | H161: 0.415 | I161: 0.585 | J161: 1.09 | K161: 1.4375 | L161: 1830 | M161: 177 | N161: 154 | O161: 9.55 | P161: 70.4 | Q161: 24.5 | R161: 15.7 | S161: 1.87 | T161: 1.87 | U161: 9430 | V161: 124
A162: W18X106 | B162: W24X76 | C162: W610X113 | D162: 76 | E162: 22.4 | F162: 23.9 | G162: 8.99 | H162: 0.44 | I162: 0.68 | J162: 1.18 | K162: 1.4375 | L162: 2100 | M162: 200 | N162: 176 | O162: 9.69 | P162: 82.5 | Q162: 28.6 | R162: 18.4 | S162: 1.92 | T162: 2.68 | U162: 11100 | V162: 123
A163: W18X97 | B163: W24X84 | C163: W610X125 | D163: 84 | E163: 24.7 | F163: 24.1 | G163: 9.02 | H163: 0.47 | I163: 0.77 | J163: 1.27 | K163: 1.4375 | L163: 2370 | M163: 224 | N163: 196 | O163: 9.79 | P163: 94.4 | Q163: 32.6 | R163: 20.9 | S163: 1.95 | T163: 3.7 | U163: 12800 | V163: 122
A164: W18X86 | B164: W24X94 | C164: W610X140 | D164: 94 | E164: 27.7 | F164: 24.3 | G164: 9.07 | H164: 0.515 | I164: 0.875 | J164: 1.38 | K164: 1.4375 | L164: 2700 | M164: 254 | N164: 222 | O164: 9.87 | P164: 109 | Q164: 37.5 | R164: 24 | S164: 1.98 | T164: 5.26 | U164: 15000 | V164: 121
A165: W18X76 | B165: W27X102 | C165: W690X152 | D165: 102 | E165: 30 | F165: 27.1 | G165: 10 | H165: 0.515 | I165: 0.83 | J165: 1.43 | K165: 1.4375 | L165: 3620 | M165: 305 | N165: 267 | O165: 11 | P165: 139 | Q165: 43.4 | R165: 27.8 | S165: 2.15 | T165: 5.28 | U165: 24000 | V165: 103
A166: W18X71 | B166: W27X114 | C166: W690X170 | D166: 114 | E166: 33.6 | F166: 27.3 | G166: 10.1 | H166: 0.57 | I166: 0.93 | J166: 1.53 | K166: 1.5 | L166: 4080 | M166: 343 | N166: 299 | O166: 11 | P166: 159 | Q166: 49.3 | R166: 31.5 | S166: 2.18 | T166: 7.33 | U166: 27600 | V166: 102
A167: W18X65 | B167: W27X129 | C167: W690X192 | D167: 129 | E167: 37.8 | F167: 27.6 | G167: 10 | H167: 0.61 | I167: 1.1 | J167: 1.7 | K167: 1.5 | L167: 4760 | M167: 395 | N167: 345 | O167: 11.2 | P167: 184 | Q167: 57.6 | R167: 36.8 | S167: 2.21 | T167: 11.1 | U167: 32500 | V167: 101
A168: W18X60 | B168: W27X146 | C168: W690X217 | D168: 146 | E168: 43.2 | F168: 27.4 | G168: 14 | H168: 0.605 | I168: 0.975 | J168: 1.76 | K168: 1.5 | L168: 5660 | M168: 464 | N168: 414 | O168: 11.5 | P168: 443 | Q168: 97.7 | R168: 63.5 | S168: 3.2 | T168: 11.3 | U168: 77200 | V168: 100
A169: W18X55 | B169: W27X161 | C169: W690X240 | D169: 161 | E169: 47.6 | F169: 27.6 | G169: 14 | H169: 0.66 | I169: 1.08 | J169: 1.87 | K169: 1.5625 | L169: 6310 | M169: 515 | N169: 458 | O169: 11.5 | P169: 497 | Q169: 109 | R169: 70.9 | S169: 3.23 | T169: 15.1 | U169: 87300 | V169: 99
A170: W18X50 | B170: W27X178 | C170: W690X265 | D170: 178 | E170: 52.5 | F170: 27.8 | G170: 14.1 | H170: 0.725 | I170: 1.19 | J170: 1.98 | K170: 1.5625 | L170: 7020 | M170: 570 | N170: 505 | O170: 11.6 | P170: 555 | Q170: 122 | R170: 78.8 | S170: 3.25 | T170: 20.1 | U170: 98400 | V170: 98
A171: W18X46 | B171: W27X194 | C171: W690X289 | D171: 194 | E171: 57.1 | F171: 28.1 | G171: 14 | H171: 0.75 | I171: 1.34 | J171: 2.13 | K171: 1.5625 | L171: 7860 | M171: 631 | N171: 559 | O171: 11.7 | P171: 619 | Q171: 136 | R171: 88.1 | S171: 3.29 | T171: 27.1 | U171: 111000 | V171: 97
A172: W18X40 | B172: W27X217 | C172: W690X323 | D172: 217 | E172: 63.9 | F172: 28.4 | G172: 14.1 | H172: 0.83 | I172: 1.5 | J172: 2.29 | K172: 1.625 | L172: 8910 | M172: 711 | N172: 627 | O172: 11.8 | P172: 704 | Q172: 154 | R172: 100 | S172: 3.32 | T172: 37.6 | U172: 128000 | V172: 96
A173: W18X35 | B173: W27X235 | C173: W690X350 | D173: 235 | E173: 69.4 | F173: 28.7 | G173: 14.2 | H173: 0.91 | I173: 1.61 | J173: 2.4 | K173: 1.6875 | L173: 9700 | M173: 772 | N173: 677 | O173: 11.8 | P173: 769 | Q173: 168 | R173: 108 | S173: 3.33 | T173: 47 | U173: 141000 | V173: 95
A174: W16X100 | B174: W27X258 | C174: W690X384 | D174: 258 | E174: 76.1 | F174: 29 | G174: 14.3 | H174: 0.98 | I174: 1.77 | J174: 2.56 | K174: 1.6875 | L174: 10800 | M174: 852 | N174: 745 | O174: 11.9 | P174: 859 | Q174: 187 | R174: 120 | S174: 3.36 | T174: 61.6 | U174: 159000 | V174: 94
A175: W16X89 | B175: W27X281 | C175: W690X419 | D175: 281 | E175: 83.1 | F175: 29.3 | G175: 14.4 | H175: 1.06 | I175: 1.93 | J175: 2.72 | K175: 1.75 | L175: 11900 | M175: 936 | N175: 814 | O175: 12 | P175: 953 | Q175: 206 | R175: 133 | S175: 3.39 | T175: 79.5 | U175: 178000 | V175: 93
A176: W16X77 | B176: W27X307 | C176: W690X457 | D176: 307 | E176: 90.2 | F176: 29.6 | G176: 14.4 | H176: 1.16 | I176: 2.09 | J176: 2.88 | K176: 1.8125 | L176: 13100 | M176: 1030 | N176: 887 | O176: 12 | P176: 1050 | Q176: 227 | R176: 146 | S176: 3.41 | T176: 101 | U176: 199000 | V176: 92
A177: W16X67 | B177: W27X336 | C177: W690X500 | D177: 336 | E177: 99.2 | F177: 30 | G177: 14.6 | H177: 1.26 | I177: 2.28 | J177: 3.07 | K177: 1.8125 | L177: 14600 | M177: 1130 | N177: 972 | O177: 12.1 | P177: 1180 | Q177: 252 | R177: 162 | S177: 3.45 | T177: 131 | U177: 226000 | V177: 91
A178: W16X57 | B178: W27X368 | C178: W690X548 | D178: 368 | E178: 109 | F178: 30.4 | G178: 14.7 | H178: 1.38 | I178: 2.48 | J178: 3.27 | K178: 1.875 | L178: 16200 | M178: 1240 | N178: 1060 | O178: 12.2 | P178: 1310 | Q178: 279 | R178: 179 | S178: 3.48 | T178: 170 | U178: 255000 | V178: 90
A179: W16X50 | B179: W27X539 | C179: W690X802 | D179: 539 | E179: 159 | F179: 32.5 | G179: 15.3 | H179: 1.97 | I179: 3.54 | J179: 4.33 | K179: 1.8125 | L179: 25600 | M179: 1890 | N179: 1570 | O179: 12.7 | P179: 2110 | Q179: 437 | R179: 277 | S179: 3.65 | T179: 496 | U179: 443000 | V179: 89
A180: W16X45 | B180: W27X84 | C180: W690X125 | D180: 84 | E180: 24.7 | F180: 26.7 | G180: 10 | H180: 0.46 | I180: 0.64 | J180: 1.24 | K180: 1.4375 | L180: 2850 | M180: 244 | N180: 213 | O180: 10.7 | P180: 106 | Q180: 33.2 | R180: 21.2 | S180: 2.07 | T180: 2.81 | U180: 17900 | V180: 105
A181: W16X40 | B181: W27X94 | C181: W690X140 | D181: 94 | E181: 27.6 | F181: 26.9 | G181: 10 | H181: 0.49 | I181: 0.745 | J181: 1.34 | K181: 1.4375 | L181: 3270 | M181: 278 | N181: 243 | O181: 10.9 | P181: 124 | Q181: 38.8 | R181: 24.8 | S181: 2.12 | T181: 4.03 | U181: 21300 | V181: 104
A182: W16X36 | B182: W30X108 | C182: W760X161 | D182: 108 | E182: 31.7 | F182: 29.8 | G182: 10.5 | H182: 0.545 | I182: 0.76 | J182: 1.41 | K182: 1.5 | L182: 4470 | M182: 346 | N182: 299 | O182: 11.9 | P182: 146 | Q182: 43.9 | R182: 27.9 | S182: 2.15 | T182: 4.99 | U182: 30900 | V182: 86
A183: W16X31 | B183: W30X116 | C183: W760X173 | D183: 116 | E183: 34.2 | F183: 30 | G183: 10.5 | H183: 0.565 | I183: 0.85 | J183: 1.5 | K183: 1.5 | L183: 4930 | M183: 378 | N183: 329 | O183: 12 | P183: 164 | Q183: 49.2 | R183: 31.3 | S183: 2.19 | T183: 6.43 | U183: 34900 | V183: 85
A184: W16X26 | B184: W30X124 | C184: W760X185 | D184: 124 | E184: 36.5 | F184: 30.2 | G184: 10.5 | H184: 0.585 | I184: 0.93 | J184: 1.58 | K184: 1.5 | L184: 5360 | M184: 408 | N184: 355 | O184: 12.1 | P184: 181 | Q184: 54 | R184: 34.4 | S184: 2.23 | T184: 7.99 | U184: 38600 | V184: 84
A185: W14X873 | B185: W30X132 | C185: W760X196 | D185: 132 | E185: 38.8 | F185: 30.3 | G185: 10.5 | H185: 0.615 | I185: 1 | J185: 1.65 | K185: 1.5 | L185: 5770 | M185: 437 | N185: 380 | O185: 12.2 | P185: 196 | Q185: 58.4 | R185: 37.2 | S185: 2.25 | T185: 9.72 | U185: 42100 | V185: 83
A186: W14X808 | B186: W30X148 | C186: W760X220 | D186: 148 | E186: 43.6 | F186: 30.7 | G186: 10.5 | H186: 0.65 | I186: 1.18 | J186: 1.83 | K186: 1.5625 | L186: 6680 | M186: 500 | N186: 436 | O186: 12.4 | P186: 227 | Q186: 68 | R186: 43.3 | S186: 2.28 | T186: 14.5 | U186: 49400 | V186: 82
A187: W14X730 | B187: W30X173 | C187: W760X257 | D187: 173 | E187: 50.9 | F187: 30.4 | G187: 15 | H187: 0.655 | I187: 1.07 | J187: 1.85 | K187: 1.5625 | L187: 8230 | M187: 607 | N187: 541 | O187: 12.7 | P187: 598 | Q187: 123 | R187: 79.8 | S187: 3.42 | T187: 15.6 | U187: 129000 | V187: 81
A188: W14X665 | B188: W30X191 | C188: W760X284 | D188: 191 | E188: 56.1 | F188: 30.7 | G188: 15 | H188: 0.71 | I188: 1.19 | J188: 1.97 | K188: 1.5625 | L188: 9200 | M188: 675 | N188: 600 | O188: 12.8 | P188: 673 | Q188: 138 | R188: 89.5 | S188: 3.46 | T188: 21 | U188: 146000 | V188: 80
A189: W14X605 | B189: W30X211 | C189: W760X314 | D189: 211 | E189: 62.3 | F189: 30.9 | G189: 15.1 | H189: 0.775 | I189: 1.32 | J189: 2.1 | K189: 1.625 | L189: 10300 | M189: 751 | N189: 665 | O189: 12.9 | P189: 757 | Q189: 155 | R189: 100 | S189: 3.49 | T189: 28.4 | U189: 166000 | V189: 79
A190: W14X550 | B190: W30X235 | C190: W760X350 | D190: 235 | E190: 69.3 | F190: 31.3 | G190: 15.1 | H190: 0.83 | I190: 1.5 | J190: 2.29 | K190: 1.625 | L190: 11700 | M190: 847 | N190: 748 | O190: 13 | P190: 855 | Q190: 175 | R190: 114 | S190: 3.51 | T190: 40.3 | U190: 190000 | V190: 78
A191: W14X500 | B191: W30X261 | C191: W760X389 | D191: 261 | E191: 77 | F191: 31.6 | G191: 15.2 | H191: 0.93 | I191: 1.65 | J191: 2.44 | K191: 1.6875 | L191: 13100 | M191: 943 | N191: 829 | O191: 13.1 | P191: 959 | Q191: 196 | R191: 127 | S191: 3.53 | T191: 54.1 | U191: 215000 | V191: 77
A192: W14X455 | B192: W30X292 | C192: W760X434 | D192: 292 | E192: 86 | F192: 32 | G192: 15.3 | H192: 1.02 | I192: 1.85 | J192: 2.64 | K192: 1.75 | L192: 14900 | M192: 1060 | N192: 930 | O192: 13.2 | P192: 1100 | Q192: 223 | R192: 144 | S192: 3.58 | T192: 75.2 | U192: 250000 | V192: 76
A193: W14X426 | B193: W30X326 | C193: W760X484 | D193: 326 | E193: 95.9 | F193: 32.4 | G193: 15.4 | H193: 1.14 | I193: 2.05 | J193: 2.84 | K193: 1.75 | L193: 16800 | M193: 1190 | N193: 1040 | O193: 13.2 | P193: 1240 | Q193: 252 | R193: 162 | S193: 3.6 | T193: 103 | U193: 287000 | V193: 75
A194: W14X398 | B194: W30X357 | C194: W760X531 | D194: 357 | E194: 105 | F194: 32.8 | G194: 15.5 | H194: 1.24 | I194: 2.24 | J194: 3.03 | K194: 1.8125 | L194: 18700 | M194: 1320 | N194: 1140 | O194: 13.3 | P194: 1390 | Q194: 279 | R194: 179 | S194: 3.64 | T194: 134 | U194: 324000 | V194: 74
A195: W14X370 | B195: W30X391 | C195: W760X582 | D195: 391 | E195: 115 | F195: 33.2 | G195: 15.6 | H195: 1.36 | I195: 2.44 | J195: 3.23 | K195: 1.875 | L195: 20700 | M195: 1450 | N195: 1250 | O195: 13.4 | P195: 1550 | Q195: 310 | R195: 198 | S195: 3.67 | T195: 173 | U195: 366000 | V195: 73
A196: W14X342 | B196: W30X90 | C196: W760X134 | D196: 90 | E196: 26.3 | F196: 29.5 | G196: 10.4 | H196: 0.47 | I196: 0.61 | J196: 1.26 | K196: 1.4375 | L196: 3610 | M196: 283 | N196: 245 | O196: 11.7 | P196: 115 | Q196: 34.7 | R196: 22.1 | S196: 2.09 | T196: 2.84 | U196: 24000 | V196: 88
A197: W14X311 | B197: W30X99 | C197: W760X147 | D197: 99 | E197: 29 | F197: 29.7 | G197: 10.5 | H197: 0.52 | I197: 0.67 | J197: 1.32 | K197: 1.5 | L197: 3990 | M197: 312 | N197: 269 | O197: 11.7 | P197: 128 | Q197: 38.6 | R197: 24.5 | S197: 2.1 | T197: 3.77 | U197: 26800 | V197: 87
A198: W14X283 | B198: W33X118 | C198: W840X176 | D198: 118 | E198: 34.7 | F198: 32.9 | G198: 11.5 | H198: 0.55 | I198: 0.74 | J198: 1.44 | K198: 1.5 | L198: 5900 | M198: 415 | N198: 359 | O198: 13 | P198: 187 | Q198: 51.3 | R198: 32.6 | S198: 2.32 | T198: 5.3 | U198: 48300 | V198: 72
A199: W14X257 | B199: W33X130 | C199: W840X193 | D199: 130 | E199: 38.3 | F199: 33.1 | G199: 11.5 | H199: 0.58 | I199: 0.855 | J199: 1.56 | K199: 1.5 | L199: 6710 | M199: 467 | N199: 406 | O199: 13.2 | P199: 218 | Q199: 59.5 | R199: 37.9 | S199: 2.39 | T199: 7.37 | U199: 56600 | V199: 71
A200: W14X233 | B200: W33X141 | C200: W840X210 | D200: 141 | E200: 41.5 | F200: 33.3 | G200: 11.5 | H200: 0.605 | I200: 0.96 | J200: 1.66 | K200: 1.5 | L200: 7450 | M200: 514 | N200: 448 | O200: 13.4 | P200: 246 | Q200: 66.9 | R200: 42.7 | S200: 2.43 | T200: 9.7 | U200: 64400 | V200: 70
... 115 more rows

Sheet C
A1: C Channels
B2: 1 | C2: 2 | D2: 3 | E2: 4 | F2: 5 | G2: 6 | H2: 7 | I2: 8 | J2: 9 | K2: 10 | L2: 11 | M2: 12 | N2: 13 | O2: 14 | P2: 15 | Q2: 16 | R2: 17 | S2: 18 | T2: 19 | U2: 20 | V2: 21 | W2: 22
A3: Designation | B3: Sorted | D3: Mass | E3: Area | F3: Ix | G3: Sx | H3: rx | I3: Zx | J3: Iy | K3: Sy | L3: ry | M3: Zy | N3: J | O3: Cw | P3: d | Q3: b | R3: t | S3: w | T3: k | U3: k1 | V3: S.Area | W3: Sort
A4: Imperial | B4: Imperial | C4: Metric | D4: lb/ft | E4: in^2 | F4: in^4 | G4: in^3 | H4: in | I4: in^3 | J4: in^4 | K4: in^3 | L4: in | M4: in^3 | N4: in^4 | O4: in^6 | P4: in | Q4: in | R4: in | S4: in | T4: in | U4: in | V4: ft^2/ft | W4: NDX
A5: C15x50 | B5: C10x15.3 | C5: C250x23 | D5: 15.3 | E5: 4.464008928 | F5: 66.78976716 | G5: 13.36419996 | H5: 3.866141732 | J5: 2.210308841 | K5: 1.147246389 | L5: 0.7047244094 | N5: 0.2075768303 | O5: 43.56959892 | P5: 10 | Q5: 2.559055118 | R5: 0.437007874 | S5: 0.2401574803 | T5: 0.9448818898 | V5: 2.480314961 | W5: 10
A6: C15x40 | B6: C10x20 | C6: C250x30 | D6: 20 | E6: 5.859011718 | F6: 78.56206425 | G6: 15.68310223 | H6: 3.661417323 | J6: 2.786911148 | K6: 1.312010498 | L6: 0.688976378 | N6: 0.3675839703 | O6: 55.85846015 | P6: 10 | Q6: 2.716535433 | R6: 0.437007874 | S6: 0.3779527559 | T6: 0.9448818898 | V6: 2.50984252 | W6: 9
A7: C15x33.9 | B7: C10x25 | C7: C250x37 | D7: 25 | E7: 7.362514725 | F7: 91.05511422 | G7: 18.24609948 | H7: 3.519685039 | J7: 3.363513454 | K7: 1.482876982 | L7: 0.6732283465 | N7: 0.6943252773 | O7: 67.77493165 | P7: 10 | Q7: 2.874015748 | R7: 0.437007874 | S7: 0.5275590551 | T7: 0.9448818898 | V7: 2.536089239 | W7: 8
A8: C12x30 | B8: C10x30 | C8: C250x45 | D8: 30 | E8: 8.788517577 | F8: 102.8274113 | G8: 20.56500176 | H8: 3.421259843 | J8: 3.844015376 | K8: 1.635436342 | L8: 0.6614173228 | N8: 1.220474882 | O8: 76.33989554 | P8: 10 | Q8: 2.992125984 | R8: 0.437007874 | S8: 0.6732283465 | T8: 0.9448818898 | V8: 2.552493438 | W8: 7
A9: C12x25 | B9: C12x20.7 | C9: C310x31 | D9: 20.7 | E9: 6.076012152 | F9: 128.5342641 | G9: 21.41933418 | H9: 4.606299213 | J9: 3.81999028 | K9: 1.714767209 | L9: 0.7913385827 | N9: 0.3651814607 | O9: 109.1101922 | P9: 12.00787402 | Q9: 2.913385827 | R9: 0.5 | S9: 0.2834645669 | T9: 1.062992126 | V9: 2.926509186 | W9: 6
A10: C12x20.7 | B10: C12x25 | C10: C310x37 | D10: 25 | E10: 7.316014632 | F10: 143.9103256 | G10: 23.98233143 | H10: 4.448818898 | J10: 4.444642779 | K10: 1.885633693 | L10: 0.7795275591 | N10: 0.5333571334 | O10: 128.8468481 | P10: 12.00787402 | Q10: 3.031496063 | R10: 0.5 | S10: 0.3858267717 | T10: 1.062992126 | V10: 2.946194226 | W10: 5
A11: C10x30 | B11: C12x30 | C11: C310x45 | D11: 30 | E11: 8.819517639 | F11: 161.6888968 | G11: 26.97249489 | H11: 4.291338583 | J11: 5.093320373 | K11: 2.050397802 | L11: 0.7598425197 | N11: 0.8649034596 | O11: 148.583504 | P11: 12.00787402 | Q11: 3.149606299 | R11: 0.5 | S11: 0.5118110236 | T11: 1.062992126 | V11: 2.965879265 | W11: 4
A12: C10x25 | B12: C15x33.9 | C12: C380x50 | D12: 33.9 | E12: 9.966519933 | F12: 314.7287589 | G12: 41.92331219 | H12: 5.62992126 | J12: 8.144507578 | K12: 3.136620446 | L12: 0.905511811 | N12: 1.011456546 | O12: 354.5150271 | P12: 15 | Q12: 3.385826772 | R12: 0.6496062992 | S12: 0.4015748031 | T12: 1.377952756 | V12: 3.576115486 | W12: 3
A13: C10x20 | B13: C15x40 | C13: C380x60 | D13: 40 | E13: 11.73352347 | F13: 348.3638935 | G13: 46.37804551 | H13: 5.433070866 | J13: 9.225636903 | K13: 3.386817797 | L13: 0.8858267717 | N13: 1.448713295 | O13: 405.9048104 | P13: 15 | Q13: 3.503937008 | R13: 0.6496062992 | S13: 0.5196850394 | T13: 1.377952756 | V13: 3.576115486 | W13: 2
A14: C10x15.3 | B14: C15x50 | C14: C380x74 | D14: 50 | E14: 14.69402939 | F14: 403.6216145 | G14: 53.76191855 | H14: 5.236220472 | J14: 11.05154421 | K14: 3.807881632 | L14: 0.8661417323 | N14: 2.642760571 | O14: 487.830552 | P14: 15 | Q14: 3.700787402 | R14: 0.6496062992 | S14: 0.7165354331 | T14: 1.377952756 | V14: 3.608923885 | W14: 1
A15: C9x20 | B15: C3x3.5 | C15: C75x5 | D15: 3.5 | E15: 1.074152148 | F15: 1.525593602 | G15: 1.019096526 | H15: 1.192913386 | J15: 0.1640914064 | K15: 0.1818507574 | L15: 0.3909448819 | N15: 0.02207906332 | O15: 0.256576527 | P15: 2.992125984 | Q15: 1.338582677 | R15: 0.2716535433 | S15: 0.1338582677 | T15: 0.6299212598 | V15: 0.9219160105 | W15: 32
A16: C9x15 | B16: C3x4.1 | C16: C75x6 | D16: 4.1 | E16: 1.182652365 | F16: 1.609681439 | G16: 1.074017896 | H16: 1.165354331 | J16: 0.1854737419 | K16: 0.1958862185 | L16: 0.3976377953 | N16: 0.02618735475 | O16: 0.285995316 | P16: 2.992125984 | Q16: 1.377952756 | R16: 0.2716535433 | S16: 0.1692913386 | T16: 0.6299212598 | V16: 0.9284776903 | W16: 31
A17: C9x13.4 | B17: C3x5 | C17: C75x7 | D17: 5 | E17: 1.447702895 | F17: 1.799479698 | G17: 1.202167759 | H17: 1.114173228 | J17: 0.2304006716 | K17: 0.2239571408 | L17: 0.3976377953 | N17: 0.04204391818 | O17: 0.3478120119 | P17: 2.992125984 | Q17: 1.456692913 | R17: 0.2716535433 | S17: 0.2598425197 | T17: 0.6299212598 | V17: 0.9416010499 | W17: 30
A18: C8x18.75 | B18: C3x6 | C18: C75x9 | D18: 6 | E18: 1.736003472 | F18: 2.03492564 | G18: 1.360829493 | H18: 1.078740157 | J18: 0.295508682 | K18: 0.263012337 | L18: 0.4133858268 | N18: 0.07135453542 | O18: 0.4394198865 | P18: 2.992125984 | Q18: 1.57480315 | R18: 0.2716535433 | S18: 0.3543307087 | T18: 0.6299212598 | V18: 0.9645669291 | W18: 29
A19: C8x13.75 | B19: C4x4.5 | C19: C100x7 | D19: 4.5 | E19: 1.382602765 | F19: 3.675839703 | G19: 1.830712323 | H19: 1.62992126 | J19: 0.2931061724 | K19: 0.2715556612 | L19: 0.4606299213 | N19: 0.03195337781 | O19: 0.867668081 | P19: 4.015748031 | Q19: 1.57480315 | R19: 0.2952755906 | S19: 0.125984252 | T19: 0.6692913386 | V19: 1.174540682 | W19: 28
A20: C8x11.5 | B20: C4x5.4 | C20: C100x8 | D20: 5.4 | E20: 1.581003162 | F20: 3.868040472 | G20: 1.928350313 | H20: 1.562992126 | J20: 0.3171312685 | K20: 0.28376041 | L20: 0.4488188976 | N20: 0.03988165953 | O20: 0.9160787465 | P20: 4.015748031 | Q20: 1.57480315 | R20: 0.2952755906 | S20: 0.1850393701 | T20: 0.6692913386 | V20: 1.164698163 | W20: 27
A21: C7x14.75 | B21: C4x6.25 | C21: C100x9 | D21: 6.25 | E21: 1.844503689 | F21: 4.25244201 | G21: 2.111421546 | H21: 1.515748031 | J21: 0.3795965184 | K21: 0.3161029944 | L21: 0.4527559055 | N21: 0.05549797199 | O21: 1.091101922 | P21: 4.015748031 | Q21: 1.653543307 | R21: 0.2952755906 | S21: 0.2480314961 | T21: 0.6692913386 | V21: 1.177821522 | W21: 26
A22: C7x12.25 | B22: C4x7.25 | C22: C100x11 | D22: 7.25 | E22: 2.123504247 | F22: 4.588793355 | G22: 2.282288029 | H22: 1.468503937 | J22: 0.4180366721 | K22: 0.3368510674 | L22: 0.4448818898 | N22: 0.0819255777 | O22: 1.19164715 | P22: 4.015748031 | Q22: 1.692913386 | R22: 0.2952755906 | S22: 0.3228346457 | T22: 0.6692913386 | V22: 1.181102362 | W22: 25
A23: C7x9.8 | B23: C5x6.7 | C23: C130x10 | D23: 6.7 | E23: 1.953003906 | F23: 7.423754695 | G23: 2.965753963 | H23: 1.948818898 | J23: 0.468489374 | K23: 0.3746857887 | L23: 0.4881889764 | N23: 0.05405646623 | O23: 2.156136562 | P23: 5 | Q23: 1.732283465 | R23: 0.3188976378 | S23: 0.188976378 | T23: 0.7480314961 | V23: 1.377952756 | W23: 24
A24: C6x13 | B24: C5x9 | C24: C130x13 | D24: 9 | E24: 2.619505239 | F24: 8.793185173 | G24: 3.51496766 | H24: 1.830708661 | J24: 0.6054324217 | K24: 0.4393709575 | L24: 0.4803149606 | N24: 0.1081129325 | O24: 2.778027418 | P24: 5 | Q24: 1.850393701 | R24: 0.3188976378 | S24: 0.3267716535 | T24: 0.7086614173 | V24: 1.394356955 | W24: 23
A25: C6x10.5 | B25: C6x10.5 | C25: C150x16 | D25: 10.5 | E25: 3.069006138 | F25: 14.91958468 | G25: 4.991742267 | H25: 2.208661417 | J25: 0.8432808731 | K25: 0.5571467836 | L25: 0.5236220472 | N25: 0.1282940132 | O25: 5.697562935 | P25: 5.984251969 | Q25: 2.007874016 | R25: 0.342519685 | S25: 0.3149606299 | T25: 0.7874015748 | V25: 1.614173228 | W25: 21
A26: C6x8.2 | B26: C6x13 | C26: C150x19 | D26: 13 | E26: 3.797507595 | F26: 17.08184333 | G26: 5.711822447 | H26: 2.122047244 | J26: 1.021066584 | K26: 0.6285445642 | L26: 0.5196850394 | N26: 0.2376082004 | O26: 6.851971112 | P26: 5.984251969 | Q26: 2.125984252 | R26: 0.342519685 | S26: 0.437007874 | T26: 0.7874015748 | V26: 1.633858268 | W26: 20
A27: C5x9 | B27: C6x8.2 | C27: C150x12 | D27: 8.2 | E27: 2.371504743 | F27: 12.87745151 | G27: 4.302173959 | H27: 2.326771654 | J27: 0.6678976716 | K27: 0.4839182907 | L27: 0.531496063 | N27: 0.07351679407 | O27: 4.505915785 | P27: 5.984251969 | Q27: 1.88976378 | R27: 0.342519685 | S27: 0.2007874016 | T27: 0.7874015748 | V27: 1.594488189 | W27: 22
A28: C5x6.7 | B28: C7x12.25 | C28: C180x18 | D28: 12.25 | E28: 3.580507161 | F28: 24.0250961 | G28: 6.895683083 | H28: 2.594488189 | J28: 1.143594574 | K28: 0.6956706827 | L28: 0.562992126 | N28: 0.1604876419 | O28: 10.7993023 | P28: 7.007874016 | Q28: 2.165354331 | R28: 0.3661417323 | S28: 0.3149606299 | T28: 0.8267716535 | V28: 1.837270341 | W28: 18
A29: C4x7.25 | B29: C7x14.75 | C29: C180x22 | D29: 14.75 | E29: 4.309008618 | F29: 27.14835859 | G29: 7.7500155 | H29: 2.507874016 | J29: 1.364625458 | K29: 0.7811039244 | L29: 0.562992126 | N29: 0.2642760571 | O29: 12.92192378 | P29: 7.007874016 | Q29: 2.283464567 | R29: 0.3661417323 | S29: 0.4173228346 | T29: 0.8267716535 | V29: 1.86023622 | W29: 17
A30: C4x6.25 | B30: C7x9.8 | C30: C180x15 | D30: 9.8 | E30: 2.867505735 | F30: 21.28623514 | G30: 6.077964912 | H30: 2.728346457 | J30: 0.9706138825 | K30: 0.6285445642 | L30: 0.5826771654 | N30: 0.09946389786 | O30: 9.160787465 | P30: 7.007874016 | Q30: 2.086614173 | R30: 0.3661417323 | S30: 0.2086614173 | T30: 0.8267716535 | V30: 1.827427822 | W30: 19
A31: C4x5.4 | B31: C8x11.5 | C31: C200x17 | D31: 11.5 | E31: 3.363506727 | F31: 32.43387974 | G31: 8.116157965 | H31: 3.098425197 | J31: 1.304562718 | K31: 0.7811039244 | L31: 0.6220472441 | N31: 0.129255017 | O31: 16.16171447 | P31: 7.992125984 | Q31: 2.244094488 | R31: 0.3897637795 | S31: 0.2204724409 | T31: 0.8661417323 | V31: 2.043963255 | W31: 16
A32: C4x4.5 | B32: C8x13.75 | C32: C200x21 | D32: 13.75 | E32: 4.03000806 | F32: 35.79739319 | G32: 8.970490382 | H32: 2.984251969 | J32: 1.506373525 | K32: 0.8482300429 | L32: 0.6102362205 | N32: 0.18499324 | O32: 18.76844261 | P32: 7.992125984 | Q32: 2.322834646 | R32: 0.3897637795 | S32: 0.3031496063 | T32: 0.8661417323 | V32: 2.057086614 | W32: 15
A33: C3x6 | B33: C8x18.75 | C33: C200x28 | D33: 18.75 | E33: 5.518011036 | F33: 43.7256749 | G33: 10.98427394 | H33: 2.818897638 | J33: 1.982070428 | K33: 1.012994152 | L33: 0.5984251969 | N33: 0.437256749 | O33: 24.83839528 | P33: 7.992125984 | Q33: 2.519685039 | R33: 0.3897637795 | S33: 0.4881889764 | T33: 0.8661417323 | V33: 2.089895013 | W33: 14
A34: C3x5 | B34: C9x13.4 | C34: C230x20 | D34: 13.4 | E34: 3.921507843 | F34: 47.56969028 | G34: 10.55710773 | H34: 3.488188976 | J34: 1.717794371 | K34: 0.9519704079 | L34: 0.6614173228 | N34: 0.1669744179 | O34: 27.37064547 | P34: 9.015748031 | Q34: 2.401574803 | R34: 0.4133858268 | S34: 0.2322834646 | T34: 0.905511811 | V34: 2.263779528 | W34: 13
A35: C3x4.1 | B35: C9x15 | C35: C230x22 | D35: 15 | E35: 4.402008804 | F35: 51.17345469 | G35: 11.3504164 | H35: 3.409448819 | J35: 1.934020236 | K35: 1.025198901 | L35: 0.6614173228 | N35: 0.2080573322 | O35: 31.02006487 | P35: 9.015748031 | Q35: 2.480314961 | R35: 0.4133858268 | S35: 0.2834645669 | T35: 0.905511811 | V35: 2.283464567 | W35: 12
A36: C3x3.5 | B36: C9x20 | C36: C230x30 | D36: 20 | E36: 5.89001178 | F36: 61.26399506 | G36: 13.54727119 | H36: 3.224409449 | J36: 2.426534706 | K36: 1.177758261 | L36: 0.6417322835 | N36: 0.4300492202 | O36: 39.10092211 | P36: 9.015748031 | Q36: 2.637795276 | R36: 0.4133858268 | S36: 0.4488188976 | T36: 0.905511811 | V36: 2.306430446 | W36: 11

Sheet H
B1: 1 | C1: 2 | D1: 3 | E1: 4 | F1: 5 | G1: 6 | H1: 7 | I1: 8 | J1: 9 | K1: 10 | L1: 11 | M1: 12 | N1: 13 | O1: 14 | P1: 15 | Q1: 16 | R1: 17 | S1: 18 | T1: 19 | U1: 20 | V1: 21 | W1: 22
A2: Designation | B2: Sorted | D2: Mass | E2: Area | F2: Ix | G2: Sx | H2: rx | I2: Zx | J2: Iy | K2: Sy | L2: ry | M2: Zy | N2: J | O2: Cw | P2: d | Q2: b | R2: t | S2: w | T2: k | U2: k1 | V2: S.Area | W2: NDX
A3: Imperial | B3: Imperial | C3: Metric | D3: lb/ft | E3: in^2 | F3: in^4 | G3: in^3 | H3: in | I3: in^3 | J3: in^4 | K3: in^3 | L3: in | M3: in^3 | N3: in^4 | O3: in^6 | P3: in | Q3: in | R3: in | S3: in | T3: in | U3: in | V3: ft^2/ft | W3: NDX
